Workbook

Sheet Titel
C14: Rekenmodel
C15: behorende bij de Regeling plankosten exploitatieplan versie 2023
C18: 2023-04-06

Sheet Toelichting

Sheet Vragenlijst
K6: deze kolommen worden verborgen, en zijn niet opvraagbaar
B7: Regeling plankosten exploitatieplan 2023
B8: Vragenlijst
D9: Datum | E9: =TODAY() -> 2023-08-15 | U9: Hulp tabel invloedsfctor omvang gebied invloedsfactor A
D10: Gemeente | E10: …, | V10: 1ste deel
D11: Projectnaam | E11: …. | V11: a | W11: =0.9/15 -> 0.06
D12: Projectnummer | E12: …. | N12: Hulp tabel looptijd | R12: Invloedsfactor A | V12: b | W12: -0.9
D13: Datum prijspeil | E13: 2023-01-01 | N13: =IF(W59<=30%,2,N14) -> 2 | R13: =IF($K$25<=15,K25*W11+W12,R14) -> -0.9
D14: Looptijd project in jaren | E14: =IF(G20>0,(G20+N13),0) -> 0 | N14: =IF(W59>30%,(IF(W59<=50%,3,N15)),N15) -> 0 | R14: =IF(K25>15,(IF(K25<=50,K25*W15+W16,R15)),R15) -> 0 | V14: 2de deel
D15: Aantal werkweken per jaar | E15: 42 | N15: =IF(W59>50%,4,0) -> 0 | R15: =IF(K25>50,(IF(K25<=70,K25*W20+W21,R16)),R16) -> 0 | V15: a | W15: =0.5/(50-15) -> 0.01428571429
R16: =IF(K25>70,(IF(K25<=150,K25*W24+W25,R17)),R17) -> 0 | V16: b | W16: =-W15*15 -> -0.2142857143
R17: =IF(K25>150,K25*W28+X22,0) -> 0
C18: A | D18: Algemeen | V18: 3de deel
C20: 1 | D20: Wat is de looptijd van het project vanaf het moment van vaststellen van het ruimtelijk besluit ? | H20: jaren | K20: =+G20 -> 0 | V20: a | W20: =(0.65-0.5)/(70-50) -> 0.0075
V21: b | W21: =(0.5-(W20*50)) -> 0.125
X22: 0.8
V23: 4de deel
V24: a | W24: =(0.8-0.65)/(150-70) -> 0.001875
C25: 2 | D25: Wat is de grootte van het exploitatiegebied in m2 (netto) ? | H25: m2 | K25: =+G25/10000 -> 0 | L25: ha | V25: b | W25: =(0.65-(W24*70)) -> 0.51875
R26: invloedsfactor B
V27: 5de deel
V28: a | W28: 0
R32: B
C33: 3 | D33: Wat voor een locatie is het exploitatiegebied? | K33: FALSE | L33: FALSE | M33: FALSE | N33: =IF(K33=TRUE,1,0) -> 0 | R33: 1
K34: FALSE | L34: FALSE | N34: =IF(L33=TRUE,1,0) -> 0 | R34: 0.5
N35: =IF(M33=TRUE,1,0) -> 0 | R35: 0.25
I36: =IF(SUM(N33:N37)>1,"fout","") ->  | N36: =IF(K34=TRUE,1,0) -> 0 | R36: 0.25
N37: =IF(L34=TRUE,1,0) -> 0 | R37: 0
R39: invloedsfactor C
C40: 4 | D40: Betreft het een herstructureringsopgave ? | K40: FALSE | L40: FALSE | N40: =IF(K40=TRUE,1,0) -> 0 | R40: 1.5
C43: B | D43: Inbreng en verwerving
C45: 5 | D45: Uit hoeveel kadastrale percelen bestaat het exploitatieplan en hoeveel daarvan zijn onbebouwd en bebouwd? | H45: totaal | L45: =+G45 -> 0
C46: a | D46: aantal onbebouwde percelen | F46: a | H46: stuks | K46: =G46 -> 0
C47: b | D47: aantal bebouwde percelen | F47: b | H47: stuks | K47: =G47 -> 0
H48: =IF(L48<>L45,"fout","") ->  | L48: =SUM(K46:K47) -> 0 | N48: =IF(L48>0,1,0) -> 0
C49: 6 | D49: Hoeveel onroerende zaken is de gemeente van plan daadwerkelijk te verwerven ? | H49: totaal | L49: =+G49 -> 0 | N49: =IF(G49>0,1,0) -> 0
C50: a | D50: waarvan onbebouwde percelen | F50: a | H50: stuks | K50: =+G50 -> 0 | U50: A | V50: A. Omvang exploitatiegebied | W50: =R13 -> -0.9
C51: b | D51: waarvan percelen met woningen | F51: b | H51: stuks | K51: =+G51 -> 0 | U51: B | V51: B. Ligging | W51: =N33*R33+N34*R34+N35*R35+N36*R36+N37*R37 -> 0
C52: c | D52: waarvan percelen met (agrarische) bedrijven/winkels/kantoren (inclusief bijbehorende bedrijfswoning) | F52: c | H52: stuks | K52: =+G52 -> 0 | U52: C | V52: C. Herstructurering | W52: =IF(K40=TRUE,150%,0) -> 0
C53: d | D53: waarvan percelen met bijzondere objecten | F53: d | H53: stuks | K53: =+G53 -> 0 | U53: D | V53: D. Verwervingsituatie | W53: =IF(K59>0,K59*R59,0) -> 0
H54: =IF(L54<>L49,"fout","") ->  | L54: =SUM(K50:K53) -> 0 | U54: E | V54: E. Programma | W54: =N66*R66+N67*R67+N68*R68+N69*R69+N70*R70 -> 0
C55: 7 | D55: Van hoeveel huur(pacht)ontbindingen is sprake ? | H55: stuks | K55: =+G55 -> 0 | U55: F | V55: F. Onderzoeken | W55: =U92 -> 0
U56: G | V56: G. Bodemgesteldheid | W56: =N111*R111+N112*R112+N110*R110 -> 0
C57: 8 | D57: Indien er met een onteigeningsplan wordt gewerkt (administratieve procedure)
C58: a | D58: voor hoeveel onroerende zaken ? | E58: =IF(G58>SUM(G50:G53),"fout","") ->  | F58: a | H58: stuks | K58: =+G58 -> 0 | R58: invloedsfactor D
C59: b | D59: in hoeveel van die gevallen komt het tot een gerechtelijke procedure ? | E59: =IF(G59>G58,"fout","") ->  | F59: b | H59: stuks | K59: =+G59 -> 0 | R59: 0.1 | U59: A tm F | V59: Complexiteitsfactor | W59: =(SUM(W50:W55)/6) -> -0.15
L60: =+K59+K58 -> 0
C61: 9 | D61: Wordt of is een voorkeursrecht gevestigd (Wvg) ? | K61: FALSE | L61: FALSE | N61: =IF(K61=TRUE,1,0) -> 0 | U61: B, C, E en F | V61: CF tbv ruimtelijke ordening | W61: =(W51+W52+W54+W55)/4 -> 0
R63: E
C64: C | D64: Beoogde programma | R64: Invloedsfactor E | V64: Omrekentabel m2 /woningen | W64: 100
C66: 10 | D66: Wat is het beoogde programma volgens het ruimtelijk besluit ? | E66: woningen | H66: aantal | N66: =IF(G66>0,1,0) -> 0 | R66: =IF(N71>1,0.1,0) -> 0
E67: bedrijvigheid | H67: m2 uitgeefbaar | N67: =IF(G67>0,1,0) -> 0 | R67: =IF(N71>1,0.1,-0.25) -> -0.25 | U67: B tm F | V67: CF tbv civiele techniek | W67: =(SUM(W51:W55)/5) -> 0
E68: commercieel/retail | H68: m2 bvo | N68: =IF(G68>0,1,0) -> 0 | R68: 0.1
E69: maatschappelijk | H69: m2 bvo | N69: =IF(G69>0,1,0) -> 0 | R69: 0.25
E70: recreatie | H70: m2 | N70: =IF(G70>0,1,0) -> 0 | R70: 0.1
N71: =SUM(N66:N70) -> 0
C74: 11 | D74: Wat is de beoogde verdeling tussen uitgeefbaar en openbaar gebied ? | H74: m2 uitgeefbaar | I74: =+G74/G25 ->  | K74: =+G74/($K$25*10000) ->  | M74: =IF(K75>40%,K75/40%,1) -> 
E75: =+IF(K76<>K25*10000,"fout","") ->  | H75: m2 openbaar | I75: =+G75/G25 ->  | K75: =+G75/($K$25*10000) -> 
K76: =+G74+G75 -> 0 | L76: m2
C77: D | D77: Stedenbouwkundige planvorming
C79: 12 | D79: Wordt er een prijsvraag georganiseerd ? | K79: FALSE | L79: FALSE
C80: 13 | D80: Worden de volgende produkten opgesteld ? | K80: FALSE | N80: =IF(K80=TRUE,1,0) -> 0
K81: FALSE | N81: =IF(K81=TRUE,1,0) -> 0
K82: FALSE | N82: =IF(K82=TRUE,1,0) -> 0
K83: FALSE | N83: =IF(K83=TRUE,1,0) -> 0
K84: FALSE | N84: =IF(K84=TRUE,1,0) -> 0
C86: E | D86: Onderzoeken | R86: Invloedsfactor F | S86: Hulptabel voor invloedsfactor F
C88: 14 | D88: Zijn de volgende onderzoeken nodig? | R88: G
K89: FALSE | N89: =IF(K89=TRUE,1,0) -> 0 | R89: 0.5 | S89: =N89*R89 -> 0
K90: FALSE | N90: =IF(K90=TRUE,1,0) -> 0 | R90: 0.4 | S90: =N90*R90 -> 0
K91: FALSE | N91: =IF(K91=TRUE,1,0) -> 0 | R91: 0.3 | S91: =N91*R91 -> 0
N92: =IF(K168=TRUE,1,0) -> 0 | R92: 0.2 | S92: =N92*R92 -> 0 | U92: =MAX(S89:S92) -> 0
C94: F | D94: Ruimtelijke ordening procedures
C96: 15 | D96: Wordt het ruimtelijk besluit opgesteld via een globaal uit te werken plan,
D97: een 'omgevingsvergunning in afwijking van het bestemmingsplan' of een projectuitvoeringsbesluit ? | I97: =IF(SUM(N103+N101+N97)<1,"fout","") -> fout | K97: FALSE | L97: FALSE | N97: =IF(K97=TRUE,1,0) -> 0
C99: a | D99: Indien sprake is van een globaal uit te werken plan, hoeveel uitwerkingsplannen verwacht u? | H99: aantal | N99: =G99 -> 0
C101: 16 | D101: Of wordt het ruimtelijk besluit herzien via een gedetailleerd bestemmingsplan ? | I101: =IF((N97+N101)>1,"fout","") ->  | K101: FALSE | L101: FALSE | N101: =IF(K101=TRUE,1,0) -> 0
C103: 17 | D103: Of kan gebruik gemaakt worden van een wijziging van het ruimtelijk besluit ? | I103: =IF(SUM(N101+N97+N103)>=2,"fout","") ->  | K103: FALSE | L103: FALSE | N103: =IF(K103=TRUE,1,0) -> 0
C105: 18 | D105: Maakt dit exploitatieplan deel uit van een groter ruimtelijk besluit ? | K105: FALSE | L105: FALSE | N105: =IF(K105=TRUE,1,0) -> 0
D106: zo ja, wat is de verhouding in oppervlakte ten opzichte van dit ruimtelijk besluit ? | H106: % van het totale ruimtelijke besluit | N106: =G106/100 -> 0 | O106: =K25/(N106) ->  | P106: grootte bp ha
H107: =IF(N106>1,"fout","") -> 
C108: G | D108: Civiele en cultuurtechniek | R108: Invloedsfactor G
C110: 19 | D110: Wat is de (te verwachten) bodemgesteldheid in het gebied? | K110: FALSE | L110: FALSE | M110: FALSE | N110: =IF(K110=TRUE,1,0) -> 0 | R110: 0.5
N111: =IF(L110=TRUE,1,0) -> 0 | R111: 0.25
N112: =IF(M110=TRUE,1,0) -> 0 | R112: 0
D116: Slopen
C118: 20 | D118: Is sprake van sloop van onroerende zaken ? | K118: FALSE | L118: FALSE | N118: =IF(K118=TRUE,1,0) -> 0
E119: =+IF(L118=TRUE,"ga door naar vraag 23","") -> 
C120: a | D120: Zo ja, hoeveel m3 moet er gesloopt worden ? | H120: m3 | N120: =+G120 -> 0
C122: b | D122: Wat voor een soort te slopen onroerende zaken zijn het? Het gaat hoofdzakelijk om:
P123: Invloedsfactor | R123: =+AVERAGE(Q124,(S124)) -> 0
D124: Meerdere antwoorden zijn mogelijk | H124: % | K124: FALSE | L124: =+G126/100 -> 0 | M124: FALSE | N124: =+G124/100 -> 0 | P124: =IF(K124=TRUE,0,0) -> 0 | Q124: =+P124*L124 -> 0 | R124: =IF(M124=TRUE,-1,0) -> 0 | S124: =+R124*N124 -> 0
E125: =IF(AND(M124=FALSE,N124>0),"aanzetten ","") ->  | H125: =IF(AND(M124=TRUE,N124=0),"% invullen","") ->  | N125: =+N124+L124 -> 0
H126: %
E127: =IF(AND(K124=FALSE,L124>0),"aanzetten ","") ->  | H127: =IF(AND(K124=TRUE,L124=0),"% invullen","") -> 
C130: 21 | D130: Is er sprake van asbest in de te slopen onroerende zaken? | E130: =IF(L130=TRUE,"ga door naar vraag 22","") ->  | H130: =IF(AND(K130=FALSE,N131>0),"fout","") ->  | K130: FALSE | L130: FALSE | N130: =+IF(K130=TRUE,1,0) -> 0
C131: a | D131: Zo ja, in hoeveel procent van het totaal aantal te slopen m3 is sprake van asbest ? | H131: % | I131: =IF(AND(K130=TRUE,N131>100%),"fout"," ") ->  | N131: =+G131/100 -> 0
G132: =IF(AND(N130=1,N131<=0),"percentage invullen ","") -> 
C133: 22 | D133: Op welke wijze wordt het slopen aanbesteed ? | P133: Invloedsfactor | R133: =+AVERAGE(Q134:Q140,(S134:S136)) -> 0
D134: Meerdere antwoorden zijn mogelijk | F134: % | I134: % | K134: FALSE | L134: =+E134/100 -> 0 | M134: FALSE | N134: =+H134/100 -> 0 | P134: =IF(K134=TRUE,0.25,0) -> 0 | Q134: =P134*L134 -> 0 | R134: =IF(M134=TRUE,3,0) -> 0 | S134: =R134*N134 -> 0
D135: =IF(AND(K134=FALSE,L134>0),"aanzetten ","") ->  | E135: =IF(AND(K134=TRUE,L134=0),"% invullen","") ->  | G135: =IF(AND(M134=FALSE,N134>0),"aanzetten ","") ->  | H135: =IF(AND(M134=TRUE,N134=0),"% invullen","") -> 
F136: % | I136: % | K136: FALSE | L136: =+E136/100 -> 0 | M136: FALSE | N136: =+H136/100 -> 0 | P136: =IF(K136=TRUE,0,0) -> 0 | Q136: =P136*L136 -> 0 | R136: =IF(M136=TRUE,3,0) -> 0 | S136: =R136*N136 -> 0
D137: =IF(AND(K136=FALSE,L136>0),"aanzetten ","") ->  | E137: =IF(AND(K136=TRUE,L136=0),"% invullen","") ->  | G137: =IF(AND(M136=FALSE,N136>0),"aanzetten ","") ->  | H137: =IF(AND(M136=TRUE,N136=0),"% invullen","") -> 
F138: % | I138: % | K138: FALSE | L138: =+E138/100 -> 0 | M138: FALSE | N138: =+H138/100 -> 0 | P138: =IF(K138=TRUE,0,0) -> 0 | Q138: =P138*L138 -> 0
D139: =IF(AND(K138=FALSE,L138>0),"aanzetten ","") ->  | E139: =IF(AND(K138=TRUE,L138=0),"% invullen","") ->  | G139: =IF(AND(M138=FALSE,N138>0),"aanzetten ","") ->  | H139: =IF(AND(M138=TRUE,N138=0),"% invullen","") -> 
D140: =IF(AND(K140=FALSE,L140>0),"afvinken ","") ->  | E140: =+IF(AND(K118=TRUE,N140<>1),"fout, totaal moet 100% zijn","") ->  | N140: =+N136+N134+L134+L136+L138+N138 -> 0 | P140: =IF(M138=TRUE,1,0) -> 0 | Q140: =P140*N138 -> 0
E141: =IF(AND(K140=TRUE,L140=0),"% aangeven","") -> 
D143: Ophogen/voorbelasten
C145: 23 | D145: Is sprake van ophoging danwel voorbelasting? | E145: =IF(N145=0," ga door naar vraag 24"," ") -> ga door naar vraag 24 | K145: FALSE | L145: FALSE | N145: =IF(K145=TRUE,1,0) -> 0
D146: =IF(AND(N112=1,N145=1),"Klopt dit? De bodemgesteldheid is goed","") -> 
C147: a | D147: Wordt er integraal of partieel opgehoogd? | I147: =IF(AND(N145=1,SUM(N147:N148)<1),"fout","") ->  | K147: FALSE | L147: FALSE | N147: =IF(K147=TRUE,1,0) -> 0
N148: =IF(L147=TRUE,1,0) -> 0
C150: b | D150: In hoeveel deelplannen/fasen wordt er opgehoogd/voorbelast? | F150: b | H150: deelplan/fase | N150: =G150 -> 0
C151: c | D151: Wat is de gemiddelde te verwachten zettingstijd? | F151: c | H151: jaar | N151: =G151 -> 0
C152: d | D152: Wat is de gemiddelde hoogte van de voorbelasting? | F152: d | H152: m1 | N152: =G152 -> 0
D155: Bouw-en woonrijpmaken
C157: 24 | D157: Is sprake van bouw-en of woonrijpmaken ? | E157: =IF(L157=TRUE,"ga door naar vraag 26"," ") ->  | K157: FALSE | L157: FALSE | N157: =IF(K157=TRUE,1,0) -> 0
C159: 25 | D159: Op welke wijze wordt het bouw-en woonrijpmaken aanbesteed ? | Q159: Invloedsfactor | S159: =+AVERAGE(R160:R164,(T160:T164)) -> 0
D160: Meerdere antwoorden zijn mogelijk | F160: % | I160: % | K160: FALSE | L160: =+E160/100 -> 0 | M160: FALSE | N160: =+H160/100 -> 0 | Q160: =IF(K160=TRUE,0.25,0) -> 0 | R160: =Q160*L160 -> 0 | S160: =IF(M160=TRUE,3,0) -> 0 | T160: =S160*N160 -> 0
D161: =IF(AND(K160=FALSE,L160>0),"aanzetten ","") ->  | E161: =IF(AND(K160=TRUE,L160=0),"% invullen","") ->  | G161: =IF(AND(M160=FALSE,N160>0),"aanzetten ","") ->  | H161: =IF(AND(M160=TRUE,N160=0),"% invullen","") -> 
F162: % | I162: % | K162: FALSE | L162: =+E162/100 -> 0 | M162: FALSE | N162: =+H162/100 -> 0 | Q162: =IF(K162=TRUE,0,0) -> 0 | R162: =Q162*L162 -> 0 | S162: =IF(M162=TRUE,3,0) -> 0 | T162: =S162*N162 -> 0
D163: =IF(AND(K162=FALSE,L162>0),"aanzetten ","") ->  | E163: =IF(AND(K162=TRUE,L162=0),"% invullen","") ->  | G163: =IF(AND(M162=FALSE,N162>0),"aanzetten ","") ->  | H163: =IF(AND(M162=TRUE,N162=0),"% invullen","") -> 
F164: % | I164: % | K164: FALSE | L164: =+E164/100 -> 0 | M164: FALSE | N164: =+H164/100 -> 0 | Q164: =IF(K164=TRUE,0,0) -> 0 | R164: =Q164*L164 -> 0 | S164: =IF(M164=TRUE,1,0) -> 0 | T164: =S164*N164 -> 0
D165: =IF(AND(K164=FALSE,L164>0),"aanzetten ","") ->  | E165: =IF(AND(K164=TRUE,L164=0),"% invullen","") ->  | G165: =IF(AND(M164=FALSE,N164>0),"aanzetten ","") ->  | H165: =IF(AND(M164=TRUE,N164=0),"% invullen","") -> 
D166: =IF(AND(K166=FALSE,L166>0),"afvinken ","") ->  | G166: =+IF(AND(K157=TRUE,N166<>1),"fout, totaal moet 100% zijn","") ->  | N166: =+N164+L164+L162+L160+N160+N162 -> 0
E167: =IF(AND(K166=TRUE,L166=0),"% aangeven","") -> 
C168: 26 | D168: Is er sprake van bodemsanering ? | H168: =IF(AND(K168=TRUE,M169>100),"fout"," ") ->  | K168: FALSE | L168: FALSE | N168: =IF(K168=TRUE,1,0) -> 0
C169: a | D169: Zo ja, in hoeveel procent van het exploitatiegebied is sprake van bodemsanering ? | H169: % | I169: =IF(AND(K168=FALSE,M169>0),"fout","") ->  | M169: =+G169 -> 0
K353: TRUE

Sheet Productenlijst
B6: Regeling plankosten exploitatieplan versie 2023 | J6: Tarieven 2023 excl btw | K6: €€/uur | M6: Tarieven 2023 excl btw | O6: €€/uur | Q6: Complexiteitsfactor (A tm F) | T6: =(1+Vragenlijst!W59) -> 0.85 | U6: Invloedsfactoren (IF):
B7: Produkten/activiteitenlijst | J7: Verwerving/juridisch | K7: 142 | M7: Civiel technisch projectleiden | O7: 142 | Q7: Complexiteitsfactor ruimtelijke ordening | T7: =1+Vragenlijst!W61 -> 1 | U7: =Vragenlijst!V50 -> A. Omvang exploitatiegebied | W7: =Vragenlijst!W50 -> -0.9
J8: Stedenbouw | K8: 142 | M8: Civiel technische ontwerpen | O8: 142 | Q8: Complexiteitsfactor civiele techniek | T8: =1+Vragenlijst!W67 -> 1 | U8: =Vragenlijst!V51 -> B. Ligging | W8: =Vragenlijst!W51 -> 0
B9: Datum | D9: =TODAY() -> 2023-08-15 | J9: Ruimtelijke Ordening | K9: 142 | M9: Bestekschrijven/calculeren | O9: 113 | U9: =Vragenlijst!V52 -> C. Herstructurering | W9: =Vragenlijst!W52 -> 0
B10: Gemeente | D10: =Vragenlijst!E10 -> …, | J10: Civiele en Cultuurtechniek | K10: 142 | M10: Tekenen | O10: 101 | U10: =Vragenlijst!V53 -> D. Verwervingsituatie | W10: =Vragenlijst!W53 -> 0
B11: Projectnaam | D11: =Vragenlijst!E11 -> …. | J11: Landmeten/Vastgoedinformatie | K11: 113 | M11: Directievoeren | O11: 124 | U11: =Vragenlijst!V54 -> E. Programma | W11: =Vragenlijst!W54 -> 0
B12: Projectnummer | D12: =Vragenlijst!E12 -> …. | J12: Communicatie | K12: 124 | M12: Toezichthouden | O12: 101 | U12: =Vragenlijst!V55 -> F. Onderzoeken | W12: =Vragenlijst!W55 -> 0
B13: Datum prijspeil | D13: =Vragenlijst!E13 -> 2023-01-01 | J13: Projectmanagement | K13: 161 | U13: =Vragenlijst!V56 -> G. Bodemgesteldheid | W13: =Vragenlijst!W56 -> 0
B14: Looptijd in jaren | D14: =+Vragenlijst!E14 -> 0 | J14: Projectmanagementassistentie | K14: 113
J15: Planeconomie | K15: 142
C17: Produkt / Activiteit | J17: Aantal | K17: Uren of bedrag | L17: Tarief | N17: IF ? | O17: IF | P17: CF ? | Q17: CF | S17: Totaal in euro's | V17: Totaal in uren | AD17: link vragenlijst
D18: Verwerving | U18: =SUM(T20:T40) -> 0 | X18: =SUM(W20:W40) -> 0
C20: 1.1 | D20: Taxatie inbrengwaarde percelen | T20: =IF((S21+S22)<(4*K7),((4*K7)+S23+S24)*AB20,SUM(S21:S24)) -> 0 | W20: =IF((V21+V22)<4,(4+V23+V24)*AB20,SUM(V21:V24)) -> 0 | Y20: FALSE | AB20: =IF(Y20=TRUE,1,0) -> 0 | AD20: =IF(Vragenlijst!L48>0,TRUE,FALSE) -> FALSE
E21: uur per onbebouwd perceel | J21: =Vragenlijst!K46 -> 0 | K21: 1 | L21: =+K7 -> 142 | N21: nee | O21: 1 | P21: nee | Q21: 1 | S21: =Q21*O21*L21*K21*J21*AB20 -> 0 | V21: =AB20*J21*K21*O21*Q21 -> 0
E22: uur per bebouwd perceel | J22: =Vragenlijst!K47 -> 0 | K22: 2 | L22: =+K7 -> 142 | N22: nee | O22: 1 | P22: nee | Q22: 1 | S22: =Q22*O22*L22*K22*J22*AB20 -> 0 | V22: =AB20*J22*K22*O22*Q22 -> 0
E23: ambtelijke begeleiding onderzoek | J23: 1 | K23: 16 | L23: =+K7 -> 142 | N23: nee | O23: 1 | P23: nee | Q23: 1 | S23: =Q23*O23*L23*K23*J23*AB20 -> 0 | V23: =AB20*J23*K23*O23*Q23 -> 0
E24: jaarlijkse herziening (plus 1 maal per 5 jaar hertaxatie) | J24: 1 | K24: =((+K21*J21+K22*J22)*0.15+4)*Vragenlijst!K20+IF(Vragenlijst!K20>5,(J21*K21+J22*K22+J23*K23-((J21*K21+J22*K22)*0.15)),0) -> 0 | L24: =+K7 -> 142 | N24: nee | O24: 1 | P24: nee | Q24: 1 | S24: =Q24*O24*L24*K24*J24*AB20 -> 0 | V24: =AB20*J24*K24*O24*Q24 -> 0
C26: 1.2 | D26: Taxatie en aankoop onroerende zaak | T26: =SUM(S27:S32) -> 0 | W26: =SUM(V27:V32) -> 0 | Y26: FALSE | AB26: =IF(Y26=TRUE,1,0) -> 0 | AD26: =IF(Vragenlijst!L54>0,TRUE,FALSE) -> FALSE
E27: uur per onbebouwde perceel | J27: =Vragenlijst!G50 -> 0 | K27: 24 | L27: =+K7 -> 142 | N27: nee | O27: 1 | P27: nee | Q27: 1 | S27: =Q27*O27*L27*K27*J27*AB26 -> 0 | V27: =AB26*J27*K27*O27*Q27 -> 0
E28: uur per woning (ook huur/pachtontbinding) | J28: =Vragenlijst!G51+Vragenlijst!G55 -> 0 | K28: 48 | L28: =+K7 -> 142 | N28: nee | O28: 1 | P28: nee | Q28: 1 | S28: =Q28*O28*L28*K28*J28*AB26 -> 0 | V28: =AB26*J28*K28*O28*Q28 -> 0
E29: uur per agrarisch/bedrijf/winkel/kantoor | J29: =IF(Vragenlijst!N40=0,Vragenlijst!G52,0) -> 0 | K29: 80 | L29: =+K7 -> 142 | N29: nee | O29: 1 | P29: nee | Q29: 1 | S29: =Q29*O29*L29*K29*J29*AB26 -> 0 | V29: =S29/L29 -> 0
E30: uur per agrarisch/bedrijf/winkel/kantoor in herstructurering | J30: =IF(Vragenlijst!N40=1,Vragenlijst!G52,0) -> 0 | K30: 100 | L30: =+K7 -> 142 | N30: nee | O30: 1 | P30: nee | Q30: 1 | S30: =Q30*O30*L30*K30*J30*AB26 -> 0 | V30: =S30/L30 -> 0
E31: uur per byzonder object | J31: =IF(Vragenlijst!N40=0,Vragenlijst!G53,0) -> 0 | K31: 80 | L31: =+K7 -> 142 | N31: nee | O31: 1 | P31: nee | Q31: 1 | S31: =Q31*O31*L31*K31*J31*AB26 -> 0 | V31: =S31/L31 -> 0
E32: uur per byzonder object in herstructurering | J32: =IF(Vragenlijst!N40=1,Vragenlijst!G53,0) -> 0 | K32: 100 | L32: =K7 -> 142 | N32: nee | O32: 1 | P32: nee | Q32: 1 | S32: =Q32*O32*L32*K32*J32*AB26 -> 0 | V32: =S32/L32 -> 0
C34: 1.3 | D34: Onteigenen van onroerende zaken | T34: =SUM(S35:S37) -> 0 | W34: =SUM(V35:V36) -> 0 | Y34: FALSE | AB34: =IF(Y34=TRUE,1,0) -> 0 | AD34: =IF(Vragenlijst!L60>0,TRUE,FALSE) -> FALSE
E35: uur per administratieve procedure | J35: =Vragenlijst!G58 -> 0 | K35: 110 | L35: =K7 -> 142 | N35: nee | O35: 1 | P35: nee | Q35: 1 | S35: =Q35*O35*L35*K35*J35*AB34 -> 0 | V35: =AB34*J35*K35*O35*Q35 -> 0
E36: uur per gerechtelijke procedure | J36: =Vragenlijst!G59 -> 0 | K36: 50 | L36: =K7 -> 142 | N36: nee | O36: 1 | P36: nee | Q36: 1 | S36: =Q36*O36*L36*K36*J36*AB34 -> 0 | V36: =AB34*J36*K36*O36*Q36 -> 0
E37: vast bedrag advocaatkosten per onteigening | J37: =Vragenlijst!G59 -> 0 | K37: 36297 | N37: nee | O37: 1 | P37: nee | Q37: 1 | S37: =Q37*O37*K37*J37*AB34 -> 0
C39: 1.4 | D39: Toepassen Wet voorkeursrecht gemeente | T39: =SUM(S40:S41) -> 0 | W39: =SUM(V40:V41) -> 0 | Y39: FALSE | AB39: =IF(Y39=TRUE,1,0) -> 0 | AD39: =+Vragenlijst!K61 -> FALSE
E40: uur voor vestiging voorkeursrecht | J40: =Vragenlijst!N61 -> 0 | K40: 60 | L40: =K7 -> 142 | N40: nee | O40: 1 | P40: nee | Q40: 1 | S40: =Q40*O40*L40*K40*J40*AB39 -> 0 | V40: =AB39*J40*K40*O40*Q40 -> 0
D43: Stedenbouw | U43: =SUM(T45:T66) -> 0 | X43: =SUM(W45:W66) -> 0
C45: 2.1 | D45: Programma van Eisen | T45: =SUM(S46:S47) -> 0 | W45: =SUM(V46:V47) -> 0 | Y45: FALSE | AB45: =IF(Y45=TRUE,1,0) -> 0 | AD45: =+Vragenlijst!K80 -> FALSE
E46: uur voor opstellen pve | J46: 1 | K46: 80 | L46: =K8 -> 142 | N46: herstruct+programma | O46: =1+(W9+W11)/2 -> 1 | P46: nee | Q46: 1 | S46: =Q46*O46*L46*K46*J46*AB45 -> 0 | V46: =AB45*J46*K46*O46*Q46 -> 0
E47: uur bij maatschappelijk programma | J47: =IF(Vragenlijst!G69>0,1,0) -> 0 | K47: 40 | L47: =K8 -> 142 | N47: herstruct+programma | O47: =1+(W9+W11)/2 -> 1 | P47: nee | Q47: 1 | S47: =Q47*O47*L47*K47*J47*AB45 -> 0 | V47: =AB45*J47*K47*O47*Q47 -> 0
W48: =SUM(V49) -> 0
C49: 2.2 | D49: Prijsvraag | E49: uur voor organiseren | J49: 1 | K49: 200 | L49: =K8 -> 142 | N49: herstruct+programma | O49: =1+(W9+W11)/2 -> 1 | P49: nee | Q49: 1 | T49: =Q49*O49*L49*K49*J49*AB49 -> 0 | V49: =AB49*J49*K49*O49*Q49 -> 0 | Y49: FALSE | AB49: =IF(Y49=TRUE,1,0) -> 0 | AD49: =+Vragenlijst!K79 -> FALSE
C51: 2.3 | D51: Masterplan | T51: =SUM(S52:S53) -> 0 | W51: =SUM(V52:V53) -> 0 | Y51: FALSE | AB51: =IF(Y51=TRUE,1,0) -> 0 | AD51: =+Vragenlijst!K81 -> FALSE
E52: uur per woning | J52: =Vragenlijst!G66 -> 0 | K52: 1.5 | L52: =K8 -> 142 | N52: nee | O52: 1 | P52: ja | Q52: =T6 -> 0.85 | S52: =Q52*O52*L52*K52*J52*AB51 -> 0 | V52: =AB51*J52*K52*O52*Q52 -> 0
E53: uur per 100 m2 uitgeefbaar niet woningbouw | J53: =(Vragenlijst!G67+Vragenlijst!G68+Vragenlijst!G69+Vragenlijst!G70)/Vragenlijst!W64 -> 0 | K53: 0.25 | L53: =K8 -> 142 | N53: nee | O53: 1 | P53: ja | Q53: =T6 -> 0.85 | S53: =Q53*O53*L53*K53*J53*AB51 -> 0 | V53: =AB51*J53*K53*O53*Q53 -> 0
C55: 2.4 | D55: Beeldkwaliteitsplan | T55: =SUM(S56:S57) -> 0 | W55: =SUM(V56:V57) -> 0 | Y55: FALSE | AB55: =IF(Y55=TRUE,1,0) -> 0 | AD55: =+Vragenlijst!K82 -> FALSE
E56: uur per woning | J56: =Vragenlijst!G66 -> 0 | K56: 1 | L56: =K8 -> 142 | N56: nee | O56: 1 | P56: nee | Q56: 1 | S56: =Q56*O56*L56*K56*J56*AB55 -> 0 | V56: =AB55*J56*K56*O56*Q56 -> 0
E57: uur per 100 m2 uitgeefbaar niet woningbouw | J57: =(Vragenlijst!G67+Vragenlijst!G68+Vragenlijst!G69+Vragenlijst!G70)/Vragenlijst!W64 -> 0 | K57: 0.25 | L57: =K8 -> 142 | N57: nee | O57: 1 | P57: nee | Q57: 1 | S57: =Q57*O57*L57*K57*J57*AB55 -> 0 | V57: =AB55*J57*K57*O57*Q57 -> 0
C59: 2.5 | D59: Stedenbouwkundig plan | T59: =SUM(S60:S62) -> 0 | W59: =SUM(V60:V62) -> 0 | Y59: FALSE | AB59: =IF(Y59=TRUE,1,0) -> 0 | AD59: =+Vragenlijst!K83 -> FALSE
E60: uur per woning | J60: =Vragenlijst!G66 -> 0 | K60: 2.5 | L60: =K8 -> 142 | N60: herstruct+programma | O60: =1+(W9+W11)/2 -> 1 | P60: nee | Q60: 1 | S60: =Q60*O60*L60*K60*J60*AB59 -> 0 | V60: =AB59*J60*K60*O60*Q60 -> 0
E61: uur per 100 m2 uitgeefbaar niet woningbouw | J61: =(Vragenlijst!G67+Vragenlijst!G68+Vragenlijst!G69+Vragenlijst!G70)/Vragenlijst!W64 -> 0 | K61: 0.5 | L61: =K8 -> 142 | N61: herstruct+programma | O61: =1+(W9+W11)/2 -> 1 | P61: nee | Q61: 1 | S61: =Q61*O61*L61*K61*J61*AB59 -> 0 | V61: =AB59*J61*K61*O61*Q61 -> 0
E62: uur bij maatschappelijk programma | J62: =IF(Vragenlijst!G69>0,1,0) -> 0 | K62: 40 | L62: =K8 -> 142 | N62: herstruct+programma | O62: =1+(W9+W11)/2 -> 1 | P62: nee | Q62: 1 | S62: =Q62*O62*L62*K62*J62*AB59 -> 0 | V62: =AB59*J62*K62*O62*Q62 -> 0
C64: 2.6 | D64: Inrichtingsplan Openbare ruimte | T64: =SUM(S65:S66) -> 0 | W64: =SUM(V65:V66) -> 0 | Y64: FALSE | AB64: =IF(Y64=TRUE,1,0) -> 0 | AD64: =+Vragenlijst!K84 -> FALSE
E65: uur per woning | J65: =Vragenlijst!G66 -> 0 | K65: 1.5 | L65: =K8 -> 142 | N65: nee | O65: 1 | P65: nee | Q65: 1 | S65: =Q65*O65*L65*K65*J65*AB64 -> 0 | V65: =AB64*J65*K65*O65*Q65 -> 0
E66: uur per 100 m2 uitgeefbaar niet woningbouw | J66: =(Vragenlijst!G67+Vragenlijst!G68+Vragenlijst!G69+Vragenlijst!G70)/Vragenlijst!W64 -> 0 | K66: 0.5 | L66: =K8 -> 142 | N66: nee | O66: 1 | P66: nee | Q66: 1 | S66: =Q66*O66*L66*K66*J66*AB64 -> 0 | V66: =AB64*J66*K66*O66*Q66 -> 0
D69: Ruimtelijke ordening | U69: =SUM(T70:T79) -> 0 | X69: =SUM(W70:W79) -> 0
C70: 3.1 | D70: Opstellen en procedure bestemmingsplan, omgevingsvergunning of projectuitvoeringsbesluit | T70: =SUM(S71:S74) -> 0 | W70: =SUM(V71:V74) -> 0 | Y70: FALSE | AB70: =IF(Y70=TRUE,1,0) -> 0 | AD70: =IF(SUM(Vragenlijst!N97:N101)>0,TRUE,FALSE) -> FALSE
E71: - uur per globaal uit te werken plan, | J71: =IF(Vragenlijst!N105=1,Vragenlijst!N106,Vragenlijst!N97)*Vragenlijst!N97 -> 0 | K71: =hulpblad!B185 -> 60 | L71: =K9 -> 142 | N71: nee | O71: 1 | P71: ja | Q71: =T7 -> 1 | S71: =Q71*O71*L71*K71*J71*AB70 -> 0 | V71: =AB70*J71*K71*O71*Q71 -> 0
E72: omgevingsvergunning of projectuitvoeringsbesluit
E73: - uur per uitwerkingsplan | J73: =Vragenlijst!N99*Vragenlijst!N97 -> 0 | K73: 90 | L73: =K9 -> 142 | N73: nee | O73: 1 | P73: nee | Q73: 1 | S73: =Q73*O73*L73*K73*J73*AB70 -> 0 | V73: =AB70*J73*K73*O73*Q73 -> 0
E74: - uur per gedetailleerd bestemmingsplan | J74: =IF(Vragenlijst!N105=1,Vragenlijst!N106,Vragenlijst!N101)*Vragenlijst!N101 -> 0 | K74: =hulpblad!B171 -> 100 | L74: =K9 -> 142 | N74: nee | O74: 1 | P74: ja | Q74: =T7 -> 1 | S74: =Q74*O74*L74*K74*J74*AB70 -> 0 | V74: =AB70*J74*K74*O74*Q74 -> 0
C76: 3.2 | D76: Opstellen en procedure wijzigingsplan | E76: uur per plan (art 3.6.1.a Wro) | J76: =Vragenlijst!N103 -> 0 | K76: 90 | L76: =K9 -> 142 | N76: nee | O76: 1 | P76: nee | Q76: 1 | T76: =Q76*O76*L76*K76*J76*AB76 -> 0 | W76: =AB76*J76*K76*O76*Q76 -> 0 | Y76: FALSE | AB76: =IF(Y76=TRUE,1,0) -> 0 | AD76: =Vragenlijst!K103 -> FALSE
T78: =SUM(S79:S80) -> 0 | W78: =SUM(V79:V80) -> 0
C79: 3.3 | D79: Opstellen en procedure exploitatieplan | E79: uur per exploitatieplan | J79: 1 | K79: =hulpblad!B200 -> 25 | L79: =K9 -> 142 | N79: nee | O79: 1 | P79: ja | Q79: =T7 -> 1 | S79: =Q79*O79*L79*K79*J79*AB79 -> 0 | V79: =AB79*J79*K79*O79*Q79 -> 0 | Y79: FALSE | AB79: =IF(Y79=TRUE,1,0) -> 0 | AD79: TRUE
E80: jaarlijkse actualisatie | J80: =+Vragenlijst!K20 -> 0 | K80: =0.15*K79 -> 3.75 | L80: =+K9 -> 142 | N80: nee | O80: 1 | P80: ja | Q80: =T7 -> 1 | S80: =Q80*O80*L80*K80*J80*AB79 -> 0 | V80: =AB79*J80*K80*O80*Q80 -> 0
D83: Civiele en cultuur techniek | U83: =SUM(T84:T89) -> 0 | X83: =SUM(W84:W90) -> 0
C84: 4.1 | D84: Planontwikkeling | E84: uur per week | J84: =Vragenlijst!E14*Vragenlijst!E15 -> 0 | K84: 2 | L84: =K10 -> 142 | N84: bodemgesteldheid | O84: =1+W13 -> 1 | P84: ja | Q84: =T6 -> 0.85 | T84: =Q84*O84*L84*K84*J84*AB84 -> 0 | W84: =AB84*J84*K84*O84*Q84 -> 0 | Y84: FALSE | AB84: =IF(Y84=TRUE,1,0) -> 0 | AD84: =IF(SUM(Vragenlijst!N83:N84)>0,TRUE,FALSE) -> FALSE
C86: 4.2 | D86: Voorbereiding, toezicht en directievoering | T86: =SUM(S87:S89) -> 0 | W86: =SUM(V87:V89) -> 0 | Y86: FALSE | AB86: =IF(Y86=TRUE,1,0) -> 0 | AD86: =IF(SUM(Vragenlijst!N113+Vragenlijst!N145+Vragenlijst!N157)>0,TRUE,FALSE) -> FALSE
E87: uren en bedragen slopen | J87: 1 | K87: =+hulpblad!G48 -> 0 | L87: 1 | N87: nee | O87: 1 | P87: ja | Q87: =+T8 -> 1 | S87: =Q87*O87*L87*K87*J87*AB86 -> 0 | V87: =+hulpblad!I48*O87*Q87 -> 0
E88: bedragen ophogen/voorbelasten | J88: 1 | K88: =hulpblad!G161 -> 0 | L88: 1 | N88: nee | O88: 1 | P88: nee | Q88: 1 | S88: =Q88*O88*L88*K88*J88*AB86 -> 0
E89: uren en bedragen bouw en woonrijpmaken | J89: 1 | K89: =+hulpblad!G107 -> 0 | L89: 1 | N89: nee | O89: 1 | P89: ja | Q89: =+T8 -> 1 | S89: =Q89*O89*L89*K89*J89*AB86 -> 0 | V89: =+hulpblad!I107*O89*Q89 -> 0
D92: Landmeten/vastgoedinformatie | U92: =SUM(T93) -> 0 | X92: =SUM(W93) -> 0
C93: 5.1 | D93: Kaartmateriaal | E93: uur per week | J93: =Vragenlijst!E14*Vragenlijst!E15 -> 0 | K93: 1 | L93: =K11 -> 113 | N93: omvang | O93: =(1+W7) -> 0.1 | P93: ja | Q93: =T6 -> 0.85 | T93: =Q93*O93*L93*K93*J93*AB93 -> 0 | W93: =AB93*J93*K93*O93*Q93 -> 0 | Y93: FALSE | AB93: =IF(Y93=TRUE,1,0) -> 0 | AD93: =IF((SUM(Vragenlijst!N81:N84)+Vragenlijst!N48+Vragenlijst!N49)>0,TRUE,FALSE) -> FALSE
D96: Communicatie | U96: =SUM(T97) -> 0 | X96: =SUM(W98) -> 0
C97: 6.1 | D97: Omgevingsmanagement | T97: =SUM(S98:S100) -> 0 | Y97: FALSE | AB97: =IF(AD97=TRUE,1,0) -> 0 | AD97: =IF(T6>130%,TRUE,FALSE) -> FALSE
E98: uur per week | J98: =Vragenlijst!E14*Vragenlijst!E15*AB97 -> 0 | K98: 1 | L98: =K12 -> 124 | N98: nee | O98: 1 | P98: ja | Q98: =T6 -> 0.85 | S98: =Q98*O98*L98*K98*J98*AB97 -> 0 | W98: =AB97*J98*K98*O98*Q98 -> 0
E99: kosten gemid per jaar woningbouw | J99: =Vragenlijst!E14*AB97 -> 0 | K99: 6050 | L99: =IF(Vragenlijst!N66=1,1,0) -> 0 | N99: nee | O99: 1 | P99: ja | Q99: =T6 -> 0.85 | S99: =Q99*O99*L99*K99*J99*AB97 -> 0
E100: kosten gemid per jaar bedrijvigheid/commercieel | J100: =Vragenlijst!E14*AB97 -> 0 | K100: 12110 | L100: =IF(Vragenlijst!N67=1,1,IF(Vragenlijst!N68=1,1,0)) -> 0 | N100: nee | O100: 1 | P100: ja | Q100: =T6 -> 0.85 | S100: =Q100*O100*L100*K100*J100*AB97 -> 0
D103: Management | U103: =SUM(T104:T106) -> 0 | X103: =SUM(W104:W106) -> 0
C104: 7.1 | D104: Projectmanagement | E104: uur per week | J104: =Vragenlijst!$E$14*Vragenlijst!$E$15 -> 0 | K104: 8 | L104: =K13 -> 161 | N104: omvang | O104: =1+W7 -> 0.1 | P104: ja | Q104: =T6 -> 0.85 | T104: =Q104*O104*L104*K104*J104*AB104 -> 0 | W104: =AB104*J104*K104*O104*Q104 -> 0 | Y104: FALSE | AB104: =IF(Y104=TRUE,1,0) -> 0 | AD104: TRUE
C106: 7.2 | D106: Projectmanagementassistentie | E106: uur per week | J106: =Vragenlijst!$E$14*Vragenlijst!$E$15*AB106 -> 0 | K106: 6 | L106: =K14 -> 113 | N106: omvang | O106: =1+W7 -> 0.1 | P106: ja | Q106: =T6 -> 0.85 | T106: =Q106*O106*L106*K106*J106*AB106 -> 0 | W106: =AB106*J106*K106*O106*Q106 -> 0 | Y106: FALSE | AB106: =IF(AD106=TRUE,1,0) -> 0 | AD106: =IF(T6>130%,TRUE,FALSE) -> FALSE
D109: Planeconomie | U109: =SUM(T110) -> 0 | X109: =SUM(W110) -> 0
C110: 8.1 | D110: Planeconomie | E110: uur per week | J110: =Vragenlijst!$E$14*Vragenlijst!$E$15 -> 0 | K110: 4 | L110: =K15 -> 142 | N110: omvang | O110: =1+W7 -> 0.1 | P110: ja | Q110: =T6 -> 0.85 | T110: =Q110*O110*L110*K110*J110*AB110 -> 0 | W110: =AB110*J110*K110*O110*Q110 -> 0 | Y110: FALSE | AB110: =IF(Y110=TRUE,1,0) -> 0 | AD110: TRUE
T114: =SUM(T18:T111) -> 0 | U114: =SUM(U18:U111) -> 0 | W114: =SUM(W18:W111) -> 0 | X114: =SUM(X18:X111) -> 0

Sheet Resultaat
C3: Regeling plankosten exploitatieplan 2023
C4: Resultaat
D5: Datum | E5: =TODAY() -> 2023-08-15 | F5: Complexiteit | G5: =Productenlijst!T6 -> 0.85
D6: Gemeente | E6: =Vragenlijst!E10 -> …,
D7: Projectnaam | E7: =Vragenlijst!E11 -> ….
D8: Projectnummer | E8: =Vragenlijst!E12 -> ….
D9: Datum prijspeil | E9: =Vragenlijst!E13 -> 2023-01-01
D10: Looptijd project in jaren | E10: =Vragenlijst!E14 -> 0
G11: euro's
D12: Produkt/activiteit | E12: uren | F12: euro's | G12: in %
D13: Verwerving | E13: =SUM(E14:E17) -> 0 | F13: =SUM(F14:F17) -> 0 | G13: =F13/$F$49 -> 
C14: 1.1 | D14: Taxatie inbrengwaarde percelen | E14: =Productenlijst!W20 -> 0 | F14: =Productenlijst!T20 -> 0 | G14: =F14/$F$49 ->  | H14: TRUE | O14: =IF(F14>0,TRUE,FALSE) -> FALSE
C15: 1.2 | D15: =Productenlijst!D26 -> Taxatie en aankoop onroerende zaak | E15: =Productenlijst!W26 -> 0 | F15: =Productenlijst!T26 -> 0 | G15: =F15/$F$49 ->  | H15: TRUE | O15: =IF(F15>0,TRUE,FALSE) -> FALSE
C16: 1.3 | D16: =Productenlijst!D34 -> Onteigenen van onroerende zaken | E16: =Productenlijst!W34 -> 0 | F16: =Productenlijst!T34 -> 0 | G16: =F16/$F$49 ->  | H16: TRUE | O16: =IF(F16>0,TRUE,FALSE) -> FALSE
C17: 1.4 | D17: =Productenlijst!D39 -> Toepassen Wet voorkeursrecht gemeente | E17: =Productenlijst!W39 -> 0 | F17: =Productenlijst!T39 -> 0 | G17: =F17/$F$49 ->  | H17: FALSE | O17: =IF(F17>0,TRUE,FALSE) -> FALSE
D19: Stedenbouw | E19: =SUM(E20:E25) -> 0 | F19: =SUM(F20:F25) -> 0 | G19: =F19/$F$49 -> 
C20: 2.1 | D20: =Productenlijst!D45 -> Programma van Eisen | E20: =Productenlijst!W45 -> 0 | F20: =Productenlijst!T45 -> 0 | H20: TRUE | O20: =IF(F20>0,TRUE,FALSE) -> FALSE
C21: 2.2 | D21: =Productenlijst!D49 -> Prijsvraag | E21: =Productenlijst!W48 -> 0 | F21: =Productenlijst!T49 -> 0 | H21: FALSE | O21: FALSE
C22: 2.3 | D22: =Productenlijst!D51 -> Masterplan | E22: =Productenlijst!W51 -> 0 | F22: =Productenlijst!T51 -> 0 | H22: FALSE | O22: FALSE
C23: 2.4 | D23: Beeldkwaliteitsplan | E23: =Productenlijst!W55 -> 0 | F23: =Productenlijst!T55 -> 0 | H23: TRUE | O23: FALSE
C24: 2.5 | D24: =Productenlijst!D59 -> Stedenbouwkundig plan | E24: =Productenlijst!W59 -> 0 | F24: =Productenlijst!T59 -> 0 | H24: FALSE | O24: FALSE
C25: 2.6 | D25: =Productenlijst!D64 -> Inrichtingsplan Openbare ruimte | E25: =Productenlijst!W64 -> 0 | F25: =Productenlijst!T64 -> 0 | H25: TRUE | O25: FALSE
D27: Ruimtelijke Ordening | E27: =SUM(E28:E30) -> 0 | F27: =SUM(F28:F30) -> 0 | G27: =F27/$F$49 -> 
C28: 3.1 | D28: =Productenlijst!D70 -> Opstellen en procedure bestemmingsplan, omgevingsvergunning of projectuitvoeringsbesluit | E28: =Productenlijst!W70 -> 0 | F28: =Productenlijst!T70 -> 0 | G28: =F28/$F$49 ->  | H28: TRUE | O28: =IF(F28>0,TRUE,FALSE) -> FALSE
C29: 3.2 | D29: =Productenlijst!D76 -> Opstellen en procedure wijzigingsplan | E29: =Productenlijst!W76 -> 0 | F29: =Productenlijst!T76 -> 0 | G29: =F29/$F$49 ->  | H29: FALSE | O29: =IF(F29>0,TRUE,FALSE) -> FALSE
C30: 3.3 | D30: =Productenlijst!D79 -> Opstellen en procedure exploitatieplan | E30: =Productenlijst!W78 -> 0 | F30: =Productenlijst!T78 -> 0 | G30: =F30/$F$49 ->  | H30: TRUE | O30: =IF(F30>0,TRUE,FALSE) -> FALSE
D32: Civiele en cultuur techniek | E32: =SUM(E33:E34) -> 0 | F32: =SUM(F33:F34) -> 0 | G32: =F32/$F$49 -> 
C33: 4.1 | D33: =Productenlijst!D84 -> Planontwikkeling | E33: =Productenlijst!W84 -> 0 | F33: =Productenlijst!T84 -> 0 | G33: =F33/$F$49 ->  | H33: TRUE | O33: =IF(F33>0,TRUE,FALSE) -> FALSE
C34: 4.2 | D34: =Productenlijst!D86 -> Voorbereiding, toezicht en directievoering | E34: =Productenlijst!W86 -> 0 | F34: =Productenlijst!T86 -> 0 | G34: =F34/$F$49 ->  | H34: TRUE | O34: =IF(F34>0,TRUE,FALSE) -> FALSE
D36: Landmeten/vastgoedinformatie | E36: =SUM(E37) -> 0 | F36: =SUM(F37) -> 0 | G36: =F36/$F$49 -> 
C37: 5.1 | D37: =Productenlijst!D93 -> Kaartmateriaal | E37: =Productenlijst!X92 -> 0 | F37: =Productenlijst!U92 -> 0 | G37: =F37/$F$49 ->  | H37: TRUE | O37: =IF(F37>0,TRUE,FALSE) -> FALSE
D39: Communicatie | E39: =SUM(E40) -> 0 | F39: =SUM(F40) -> 0 | G39: =F39/$F$49 -> 
C40: 6.1 | D40: =Productenlijst!D97 -> Omgevingsmanagement | E40: =Productenlijst!X96 -> 0 | F40: =Productenlijst!U96 -> 0 | G40: =F40/$F$49 ->  | H40: FALSE | O40: =IF(F40>0,TRUE,FALSE) -> FALSE
D42: Management | E42: =SUM(E43:E44) -> 0 | F42: =SUM(F43:F44) -> 0 | G42: =F42/$F$49 -> 
C43: 7.1 | D43: =Productenlijst!D104 -> Projectmanagement | E43: =Productenlijst!W104 -> 0 | F43: =Productenlijst!T104 -> 0 | G43: =F43/$F$49 ->  | H43: FALSE | O43: =IF(F43>0,TRUE,FALSE) -> FALSE
C44: 7.2 | D44: =Productenlijst!D106 -> Projectmanagementassistentie | E44: =Productenlijst!W106 -> 0 | F44: =Productenlijst!T106 -> 0 | G44: =F44/$F$49 ->  | H44: FALSE | O44: =IF(F44>0,TRUE,FALSE) -> FALSE
D46: Planeconomie | E46: =SUM(E47) -> 0 | F46: =SUM(F47) -> 0 | G46: =F46/$F$49 -> 
C47: 8.1 | D47: =Productenlijst!D110 -> Planeconomie | E47: =Productenlijst!X109 -> 0 | F47: =Productenlijst!U109 -> 0 | G47: =F47/$F$49 ->  | H47: FALSE | O47: =IF(F47>0,TRUE,FALSE) -> FALSE
D49: totaal | E49: =E46+E42+E39+E36+E32+E27+E19+E13 -> 0 | F49: =F46+F42+F39+F36+F32+F27+F19+F13 -> 0 | G49: =G46+G42+G39+G36+G32+G27+G19+G13 -> 

Sheet hulpblad
B3: Plankosten SLOPEN
B5: Op te halen variabelen uit vragen- en produktenlijst
C6: Omvang plangebied | F6: =+Vragenlijst!K25 -> 0 | G6: ha
C7: aantal m3 | F7: =+Vragenlijst!N120 -> 0 | G7: m3
C8: invloedsfactor | F8: =1+Vragenlijst!R123 -> 1 | G8: gemiddeld type te slopen onroerende zaak
C9: aantal bestekken sloop volgens norm | F9: =F6/2.5*0.5 -> 0 | G9: stuks (norm: 0,5 per deelgebied, 6 deelgebieden per 15 ha)
C10: te rekenen aantal bestekken | F10: =IF(Vragenlijst!K118=TRUE,F9,0) -> 0 | G10: stuks
C12: invloedsfactor | F12: =1+Vragenlijst!R133 -> 1 | G12: wijze van aanbesteding
C13: asbest ? | F13: =+IF(Vragenlijst!K130=TRUE,"ja","nee") -> nee | G13: =+Vragenlijst!N131+1 -> 1 | H13: asbest
C15: tarief projectleider | F15: =+Productenlijst!O7 -> 142 | G15: per uur
C16: tarief bestekschrijver/calculator | F16: =+Productenlijst!O9 -> 113 | G16: per uur
C17: tarief directievoerder | F17: =+Productenlijst!O11 -> 124 | G17: per uur
C18: tarief toezichthouder | F18: =+Productenlijst!O12 -> 101 | G18: per uur
B20: Uitgangspunten slopen
B22: Voorbereiding, aanbesteding en gunning
C23: bestekschrijver/calculator | F23: 12 | G23: uur per bestek
C24: invloedsfactor | F24: =+F12 -> 1 | G24: wijze van aanbesteding
B26: Directievoering en toezicht
C27: uitvoeringstijd | F27: 8 | G27: uur per 300 m3 (1 woning)
C28: totaal uitvoeringstijd | F28: =+F7/300*F27 -> 0 | G28: uur
C29: invloedsfactor | F29: =+F8 -> 1 | G29: type te slopen onroerende zaak
C30: invloedsfactor | F30: =+F12 -> 1 | G30: wijze van aanbesteding
C31: invloedsfactor | F31: =+G13 -> 1 | G31: asbest
C32: Directievoering | F32: =1 -> 1 | G32: uur per week gedurende uitvoeringstijd
C33: Toezichthouder | F33: =4*1 -> 4 | G33: uur per week gedurende uitvoeringstijd
B35: Projectleiding
C36: begeleiding aanbesteding | F36: 4 | G36: uur per bestek
C37: Invloedsfactor | F37: =+F12 -> 1 | G37: wijze van aanbesteding
C38: werkzaamheden tijdens uitvoering | F38: =0.25*1 -> 0.25 | G38: uur per week gedurende uitvoeringstijd
C39: Invloedsfactor | F39: =+F8 -> 1 | G39: type te slopen onroerende zaak
C40: Invloedsfactor | F40: =+G13 -> 1 | G40: asbest
B42: Plankosten | G42: euro's | I42: uren
C44: Aanbesteding en gunning | G44: =+F23*F10*F24*F16 -> 0 | I44: =+F23*F10*F24 -> 0
C45: Directievoering en toezicht | G45: =+(((F28)/40*(F29)*(F30)*F32*F17)+((F28)/40*(F29)*(F30)*F33*F18))*F31 -> 0 | I45: =+(((F28)/40*(F29)*(F30)*F32)+((F28)/40*(F29)*(F30)*F33))*F31 -> 0
C46: Projectleiding | G46: =+(F36*F10*F15*(F37)+F38*(F28)/40*F15*F39)*F40 -> 0 | I46: =+(F36*F10*(F37)+F38*(F28)/40*F39)*F40 -> 0
B48: Totaal plankosten SLOPEN | G48: =SUM(G44:G46) -> 0 | I48: =SUM(I44:I47) -> 0
B52: Plankosten BOUW EN WOONRIJPMAKEN
B54: Op te halen variabelen uit vragen- en produktenlijst
C56: Omvang plangebied | F56: =+Vragenlijst!K25 -> 0 | G56: ha
C57: Programma | F57: =+Vragenlijst!G66+(Vragenlijst!G67+Vragenlijst!G68+Vragenlijst!G69+Vragenlijst!G70)/100 -> 0 | G57: woning(equivalenten)
C58: aantal deelgebieden volgens norm | F58: =+F56/2.5 -> 0 | G58: stuks (6 deelgebieden per 15 ha, ) | M58: verhouding openbaar/uitgeefbaar tov norm | N58: =+Vragenlijst!M74 -> 
C59: aantal deelgebieden cf verhouding grondgebruik | F59: =hulpblad!F58*N70 ->  | G59: stuks 40% openbaar is norm | M59: hulptabel te berekenen aantal deelgebieden
C60: te rekenen aantal deelgebieden | F60: =IF(Vragenlijst!K157=TRUE,F59,0) -> 0 | G60: stuks | M60: % t.o.v. norm | N60: verrekeningsfactor
C61: aantal bestekken bwrm volgens norm | F61: =F60*2 -> 0 | G61: stuks (2 bestekken per deelplan) | M61: 1 | N61: 1
C62: te rekenen aantal bestekken | F62: =IF(Vragenlijst!K157=TRUE,F61,0) -> 0 | G62: stuks | M62: 1.12 | N62: 1.05
M63: 1.25 | N63: 1.1
C64: invloedsfactor | F64: =1+Vragenlijst!S159 -> 1 | G64: wijze van aanbesteden | M64: 1.38 | N64: 1.15
C65: bodemsanering ? | F65: =+IF(Vragenlijst!K168=TRUE,"ja","nee") -> nee | G65: =+Vragenlijst!G169/100 -> 0 | H65: van het exploitatiegebied | M65: 1.5 | N65: 1.2
M66: 1.5 | N66: 1.2
C67: tarief projectleider | F67: =+Productenlijst!O7 -> 142 | G67: per uur
C68: tarief ontwerper | F68: =+Productenlijst!O8 -> 142 | G68: per uur
C69: tarief bestekschrijver/calculator | F69: =+Productenlijst!O9 -> 113 | G69: per uur
C70: tarief tekenaar | F70: =+Productenlijst!O10 -> 101 | G70: per uur | M70: te hanteren verreken % t.o.v. norm deelgebieden: | N70: =IF(N58<$M$61,$N$61,IF(N58<$M$62,$N61+((N58-$M$61)/($M$62-$M$61))*($N$62-$N$61), IF(N58<$M$63,$N$62+((N58-$M$62)/($M$63-$M$62))*($N$63-$N$62), IF(N58<$M$64,$N$63+((N58-$M$63)/($M$64-$M$63))*($N$64-$N$63), IF(N58<$M$65,$N$64+((N58-$M$64)/($M$65-$M$64))*($N$65-$N$64), IF(N58<$M$66,$N$65+((N58-$M$65)/($M$66-$M$65))*($N$66-$N$65),$N$66)))))) -> 
C71: tarief directievoerder | F71: =+Productenlijst!O11 -> 124 | G71: per uur
C72: tarief toezichthouder | F72: =+Productenlijst!O12 -> 101 | G72: per uur
B74: Uitgangspunten BOUW EN WOONRIJPMAKEN
B76: Ontwerp VO en DO:
C77: aantal deelgebieden | F77: =+F60 -> 0 | G77: deelgebieden
C78: uren ontwerper | F78: 160 | G78: per ontwerp VO en DO per deelgebied
C79: Rioleringsplan | F79: 0.25 | G79: uur per woning(equivalent)
B81: Aanbesteding en gunning
C82: Aantal bestekken | F82: =+F62 -> 0 | G82: brm en wrm
C83: invloedsfactor | F83: =+F64 -> 1 | G83: wijze van aanbesteding
C84: bestekschrijver/calculator | F84: 40 | G84: uur per bestek
C85: tekenaar | F85: 24 | G85: uur per bestek
B87: Directievoering en toezicht
C88: uitvoeringstijd BWRM | F88: 12 | G88: maanden
C89: extra uitvoeringstijd BRM ivm bodemsanering | F89: =+IF(F65="ja",2*G65,0) -> 0 | G89: maanden
C90: totaal uitvoeringstijd bestekken | F90: =+(F88+F89)*F62/2 -> 0 | G90: maanden
C91: invloedsfactor | F91: =+F64 -> 1 | G91: wijze van aanbesteding
C92: Directievoering | F92: 5 | G92: uur per week gedurende uitvoeringstijd
C93: Toezichthouder | F93: 10 | G93: uur per week gedurende uitvoeringstijd
B95: Projectleiding
C96: begeleiding ontwerp | F96: 24 | G96: uur per ontwerp VO en DO
C97: begeleiding aanbesteding | F97: 16 | G97: uur per bestek
C98: Invloedsfactor | F98: =+F64 -> 1 | G98: wijze van aanbesteding
C99: werkzaamheden tijdens uitvoering | F99: 1 | G99: uur per week gedurende uitvoeringstijd
B101: Plankosten | G101: euro's | I101: uren
C102: Ontwerpen | G102: =+F77*F78*F68+F79*F57*F68*Productenlijst!AB86 -> 0 | I102: =+F77*F78+F79*F57*Productenlijst!AB86 -> 0
C103: Aanbesteding en gunning | G103: =+F82*F84*F69*(F83)+F82*F85*F70*(F83) -> 0 | I103: =+F82*F84*(F83)+F82*F85*(F83) -> 0
C104: Directievoering en toezicht | G104: =+F90*4*F92*F71+F90*4*F93*F72*F91 -> 0 | I104: =+F90*4*F92+F90*4*F93*F91 -> 0
C105: Projectleiding | G105: =+F96*F60*F67+F97*F62*F67*(F98)+F99*F90*4*F67 -> 0 | I105: =+F96*F60+F97*F62*(F98)+F99*F90*4 -> 0
B107: Totaal plankosten BOUW EN WOONRIJPMAKEN | G107: =SUM(G102:G105) -> 0 | I107: =SUM(I102:I106) -> 0
B114: PLANKOSTEN OPHOGEN/VOORBELASTEN
B116: Op te halen variabelen uit plankostenscan
C117: Grootte plangebied | F117: =Vragenlijst!K25 -> 0 | G117: ha
C118: Integraal of partieel | F118: =IF(Vragenlijst!N147=1,"integraal","partieel") -> partieel
C119: Hoogte ophogen | F119: =Vragenlijst!N152 -> 0 | G119: m1
C120: Aantal fases/deelplannen | F120: =Vragenlijst!N150 -> 0 | G120: stuks
C121: Zettingstijd | F121: =Vragenlijst!N151 -> 0 | G121: jaar
C122: Tarief Directievoering | F122: =Productenlijst!O11 -> 124 | G122: per uur
C123: Tarief toezichthouden | F123: =Productenlijst!O12 -> 101 | G123: per uur
B125: Basiskosten ophogen
B126: uitgangspunt: 10 ha en 1 m1 ophogen
C127: Bestek | F127: 12110 | G127: is afhankelijk van grootte werk, naarmate werk groter wordt nemen kosten niet lineair toe, basisprijs wel afhankelijk van integraal of partieel
G128: en aantal fases
C129: Rapportage | F129: 6055 | G129: is afhankelijk van grootte werk, naarmate werk groter wordt nemen kosten niet lineair toe (zie tabel bij bestek)
G131: hulptabel curve grootte werk | L131: hulptabel bestek | O131: hulptabel rapportage
G132: min oppervlak | I132: max oppervlak | K132: percentage | L132: minimaal | M132: maximaal | N132: per ha | O132: minimaal | P132: maximaal | Q132: per ha
G133: 0 | H133: ha | I133: 10 | J133: ha | K133: 1 | L133: =basisbedrag_bestek*(1+opslag_partieel) -> 18165 | M133: =L133 -> 18165 | N133: =CEILING(M133/I133,25) -> 1825 | O133: =basisbedrag_rapportage -> 6055 | P133: =basisbedrag_rapportage -> 6055 | Q133: =CEILING(P133/I133,25) -> 625
G134: =I133 -> 10 | H134: =H133 -> ha | I134: 15 | J134: =J133 -> ha | K134: 0.9 | L134: =M133 -> 18165 | M134: =I134*K134*$N$133 -> 24637.5 | N134: =CEILING(M134/I134,25) -> 1650 | O134: =P133 -> 6055 | P134: =I134*K134*$Q$133 -> 8437.5 | Q134: =CEILING(P134/I134,25) -> 575
G135: =I134 -> 15 | H135: =H134 -> ha | I135: 50 | J135: =J134 -> ha | K135: 0.75 | L135: =M134 -> 24637.5 | M135: =I135*K135*$N$133 -> 68437.5 | N135: =CEILING(M135/I135,25) -> 1375 | O135: =P134 -> 8437.5 | P135: =I135*K135*$Q$133 -> 23437.5 | Q135: =CEILING(P135/I135,25) -> 475
G136: =I135 -> 50 | H136: =H135 -> ha | I136: 100 | J136: ha | K136: 0.5 | L136: =M135 -> 68437.5 | M136: =I136*K136*$N$133 -> 91250 | N136: =CEILING(M136/I136,25) -> 925 | O136: =P135 -> 23437.5 | P136: =I136*K136*$Q$133 -> 31250 | Q136: =CEILING(P136/I136,25) -> 325
C138: Veldonderzoeken | F138: 2422 | G138: per ha
C139: Monitoring | F139: 1514 | G139: per ha per jaar zettingstijd
C140: Inmeting | F140: 606 | G140: per ha
C141: Directievoering | F141: =CEILING((10*10000*$F$119)/$F$147/5*($F$122*4),500) -> 0 | G141: 1/2 dag per week, gedurende aanbrengtijd, is dus afhankelijk van hoogte en grootte werk
C142: Toezichthouder | F142: =CEILING((10*10000*$F$119)/$F$147/5*($F$123*4),500) -> 0 | G142: 1/2 dag per week, gedurende aanbrengtijd, is dus afhankelijk van hoogte en grootte werk
B143: Totaal basiskosten ophogen | F143: =SUM(F127:F142) -> 22707 | G143: plangebied 10 ha en 1 m1 integraal ophogen
B145: Rekenkundige uitgangspunten
C146: Grootte van een fase | F146: =IF(aantal_fases=0,0,plangebied/aantal_fases) -> 0 | G146: ha
C147: Levering per as | F147: 1000 | G147: m3 per dag
C148: Uren per week directievoering | F148: 4
C149: Uren per week toezichthouden | F149: 4
C150: Indien partieel grootte plangebied | F150: 0.35
C151: Opslag partieel | F151: =IF(F118="Integraal",0,50%) -> 0.5 | G151: als partiële ophoging dan opslag 50% voor bestek
B153: Plankosten ophogen
C154: Bestek | G154: =IF(grootte_fase<=$I$133,$M$133,IF(AND(grootte_fase>$G$134,grootte_fase<=$I$134),IF($N$134*grootte_fase<$L$134,$L$134,$N$134*grootte_fase),IF(AND(grootte_fase>$G$135,grootte_fase<=$I$135),IF($N$135*grootte_fase<$L$135,$L$135,$N$135*grootte_fase),IF(grootte_fase>G136,IF(IF($N$136*grootte_fase<$L$136,$L$136,$N$136*grootte_fase)>$M$136,$M$136,IF($N$136*grootte_fase<$L$136,$L$136,$N$136*grootte_fase)),0))))*aantal_fases -> 0
C155: Rapportage | G155: =IF(grootte_fase<=$I$133,$P$133,IF(AND(grootte_fase>$G$134,grootte_fase<=$I$134),IF($Q$134*grootte_fase<$O$134,$O$134,$Q$134*grootte_fase),IF(AND(grootte_fase>$G$135,grootte_fase<=$I$135),IF($Q$135*grootte_fase<$O$135,$O$135,$Q$135*grootte_fase),IF(grootte_fase>G136,IF(IF($Q$136*grootte_fase<$O$136,$O$136,$Q$136*grootte_fase)>$P$136,$P$136,IF($Q$136*grootte_fase<$O$136,$O$136,$Q$136*grootte_fase)),0))))*aantal_fases -> 0
C156: Veldonderzoeken | G156: =IF(basisbedrag_veldonderzoeken*plangebied*IF(F118="partieel",F150,1)<4844,4844,basisbedrag_veldonderzoeken*plangebied*IF(F118="partieel",F150,1)) -> 4844
C157: Monitoring | G157: =IF(basisbedrag_monitoring*plangebied*zettingstijd*IF(F118="partieel",F150,1)<3028,3028,basisbedrag_monitoring*plangebied*zettingstijd*IF(F118="partieel",F150,1)) -> 3028
C158: Inmeting | G158: =IF(basisbedrag_inmeting*plangebied*IF(F118="partieel",F150,1)<1211,1211,basisbedrag_inmeting*plangebied*IF(F118="partieel",F150,1)) -> 1211
C159: Directievoering | G159: =CEILING(((((plangebied*IF($F$118="Integraal",1,$F$150))*ophooghoogte*10000)/levering_per_as_per_dag)/5)*(tarief_civiel*uren_per_week_directievoering),500) -> 0
C160: Toezichthouder | G160: =CEILING(((((plangebied*IF($F$118="Integraal",1,$F$150))*ophooghoogte*10000)/levering_per_as_per_dag)/5)*(F123*uren_per_week_toezichthouden),500) -> 0
B161: Totaal plankosten ophogen tbv plankostenscan | G161: =SUM(G154:G160)*Vragenlijst!N145 -> 0
B168: Hulptabel kosten Ruimtelijke ordening
B170: =IF(Vragenlijst!N105=1,Vragenlijst!O106,Vragenlijst!K25) -> 0 | C170: ha exploitatiegebied
B171: =IF(B170<0.5,B173,(IF(B170<1,B174,IF(B170<3,B175,(IF(B170<5,B176,(IF(B170<10,B177,IF(B170<15,B178,IF(B170<20,B179,IF(B170<50,B180,B181))))))))))) -> 100 | C171: uur voor gedetailleerd bestemmingsplan
B173: 100 | C173: uur voor exploitatiegebied < 0,5 ha
B174: 200 | C174: uur voor exploitatiegebied tussen 0,5 ha en 1 ha
B175: 300 | C175: uur voor exploitatiegebied tussen 1 ha en 3 ha
B176: 400 | C176: uur voor exploitatiegebied tussen 3 ha en 5 ha
B177: 450 | C177: uur voor exploitatiegebied tussen 5 ha en 10 ha
B178: 500 | C178: uur voor exploitatiegebied tussen 10 ha en 15 ha
B179: 550 | C179: uur voor exploitatiegebied tussen 15 ha en 20 ha
B180: 600 | C180: uur voor exploitatiegebied tussen 20 ha en 50 ha
B181: 700 | C181: uur voor exploitatiegebied groter dan 50 ha
B184: =IF(Vragenlijst!N105=1,Vragenlijst!O106,Vragenlijst!K25) -> 0 | C184: ha exploitatiegebied
B185: =IF(B184<0.5,B188,(IF(B184<1,B189,IF(B184<3,B190,(IF(B184<5,B191,(IF(B184<10,B192,IF(B184<15,B193,IF(B184<20,B194,IF(B184<50,B195,B196))))))))))) -> 60 | C185: uur voor globaal bestemmingsplan met uitwerkingsplicht
C186: of project (afwijkings)besluit
B188: 60 | C188: uur voor exploitatiegebied < 0,5 ha
B189: 120 | C189: uur voor exploitatiegebied tussen 0,5 ha en 1 ha
B190: 200 | C190: uur voor exploitatiegebied tussen 1 ha en 3 ha
B191: 300 | C191: uur voor exploitatiegebied tussen 3 ha en 5 ha
B192: 350 | C192: uur voor exploitatiegebied tussen 5 ha en 10 ha
B193: 400 | C193: uur voor exploitatiegebied tussen 10 ha en 15 ha
B194: 450 | C194: uur voor exploitatiegebied tussen 15 ha en 20 ha
B195: 500 | C195: uur voor exploitatiegebied tussen 20 ha en 50 ha
B196: 550 | C196: uur voor exploitatiegebied groter dan 50 ha
B199: =Vragenlijst!K25 -> 0 | C199: ha exploitatiegebied
B200: =IF(B199<0.5,B202,(IF(B199<1,B203,IF(B199<3,B204,(IF(B199<5,B205,(IF(B199<10,B206,IF(B199<15,B207,IF(B199<20,B208,IF(B199<50,B209,B210))))))))))) -> 25 | C200: uur voor exploitatieplan
B202: 25 | C202: uur voor exploitatiegebied < 0,5 ha
B203: 50 | C203: uur voor exploitatiegebied tussen 0,5 ha en 1 ha
B204: 75 | C204: uur voor exploitatiegebied tussen 1 ha en 3 ha
B205: 100 | C205: uur voor exploitatiegebied tussen 3 ha en 5 ha
B206: 115 | C206: uur voor exploitatiegebied tussen 5 ha en 10 ha
B207: 125 | C207: uur voor exploitatiegebied tussen 10 ha en 15 ha
B208: 200 | C208: uur voor exploitatiegebied tussen 15 ha en 20 ha
B209: 250 | C209: uur voor exploitatiegebied tussen 20 ha en 50 ha
B210: 300 | C210: uur voor exploitatiegebied groter dan 50 ha

Sheet Exploitatiebijdrage
B2: =+Resultaat!C2 -> 0 | C2: =+Resultaat!D2 -> 0 | D2: =+Resultaat!F2 -> 0
C3: Regeling plankosten exploitatieplan 2023
C4: Overzicht plankosten ingeval een omgevingsvergunning
C5: Overzicht plankosten ingeval een omgevingsvergunning wordt aangevraagd en de eigenaar zelf produkten/activiteiten heeft uitgevoerd
C6: In dat geval heeft de vergunningaanvrager recht op aftrek van kosten, mits de gemeente accoord gegeven heeft op het geleverde product !
C7: =+Resultaat!D5 -> Datum | D7: =+Resultaat!E5 -> 2023-08-15
C8: =+Resultaat!D6 -> Gemeente | D8: =+Resultaat!E6 -> …,
C9: =+Resultaat!D7 -> Projectnaam | D9: =+Resultaat!E7 -> ….
C10: =+Resultaat!D8 -> Projectnummer | D10: =+Resultaat!E8 -> ….
C11: Totaal aantal gewogen eenheden
F13: Naam grondeigenaar: | L13: Naam grondeigenaar: | R13: Naam grondeigenaar: | X13: Naam grondeigenaar: | AD13: Naam grondeigenaar:
F14: Aantal gewogen eenheden: | H14: =IF(($D$11-$G$14)<0,"fout, meer dan totaal gewogen eenheden","") ->  | L14: Aantal gewogen eenheden: | N14: =IF(($D$11-$G$14-$M$14)<0,"fout, meer dan totaal gewogen eenheden","") ->  | R14: Aantal gewogen eenheden: | T14: =IF(($D$11-$G$14-$M$14-$S$14)<0,"fout, meer dan totaal gewogen eenheden","") ->  | X14: Aantal gewogen eenheden: | Z14: =IF(($D$11-$G$14-$M$14-$S$14-$Y$14)<0,"fout, meer dan totaal gewogen eenheden","") ->  | AD14: Aantal gewogen eenheden: | AF14: =IF(($D$11-$G$14-$M$14-$S$14-$Y$14-AE14)<0,"fout, meer dan totaal gewogen eenheden","") -> 
F16: aandeel in de | G16: voert zelf onderstaande | H16: vergoeding voor | I16: te betalen | L16: aandeel in de | M16: voert zelf onderstaande | N16: vergoeding voor | O16: te betalen | R16: aandeel in de | S16: voert zelf onderstaande | T16: vergoeding voor | U16: te betalen | X16: aandeel in de | Y16: voert zelf onderstaande | Z16: vergoeding voor | AA16: te betalen | AD16: aandeel in de | AE16: voert zelf onderstaande | AF16: vergoeding voor | AG16: te betalen
F17: plankosten | G17: produkten uit: | H17: deze produkten | I17: aan de gemeente | L17: plankosten | M17: produkten uit: | N17: deze produkten | O17: aan de gemeente | R17: plankosten | S17: produkten uit: | T17: deze produkten | U17: aan de gemeente | X17: plankosten | Y17: produkten uit: | Z17: deze produkten | AA17: aan de gemeente | AD17: plankosten | AE17: produkten uit: | AF17: deze produkten | AG17: aan de gemeente
B18: totaal resultaat exploitatieplan | F18: =+G$14/$D$11 ->  | G18: conform art 8 regeling | L18: =+M$14/$D$11 ->  | M18: conform art 8 regeling | R18: =+S$14/$D$11 ->  | S18: conform art 8 regeling | X18: =+Y$14/$D$11 ->  | Y18: conform art 8 regeling | AD18: =+AE$14/$D$11 ->  | AE18: conform art 8 regeling
D19: =+Resultaat!F12 -> euro's | F19: euro's | G19: vergoedingspercentages zelf invoeren | H19: euro's | I19: euro's | L19: euro's | M19: vergoedingspercentages zelf invoeren | N19: euro's | O19: euro's | R19: euro's | S19: vergoedingspercentages zelf invoeren | T19: euro's | U19: euro's | X19: euro's | Y19: vergoedingspercentages zelf invoeren | Z19: euro's | AA19: euro's | AD19: euro's | AE19: vergoedingspercentages zelf invoeren | AF19: euro's | AG19: euro's
C20: =+Resultaat!D13 -> Verwerving | D20: =+Resultaat!F13 -> 0 | F20: =SUM(F21:F24) ->  | G20: Maximaal 90% | H20: =SUM(H21:H24) -> 0 | I20: =SUM(I21:I24) ->  | L20: =SUM(L21:L24) ->  | M20: Maximaal 90% | N20: =SUM(N21:N24) -> 0 | O20: =SUM(O21:O24) ->  | R20: =SUM(R21:R24) ->  | S20: Maximaal 90% | T20: =SUM(T21:T24) -> 0 | U20: =SUM(U21:U24) ->  | X20: =SUM(X21:X24) ->  | Y20: Maximaal 90% | Z20: =SUM(Z21:Z24) -> 0 | AA20: =SUM(AA21:AA24) ->  | AD20: =SUM(AD21:AD24) ->  | AE20: Maximaal 90% | AF20: =SUM(AF21:AF24) -> 0 | AG20: =SUM(AG21:AG24) -> 
B21: =+Resultaat!C14 -> 1.1 | C21: =+Resultaat!D14 -> Taxatie inbrengwaarde percelen | D21: =+Resultaat!F14 -> 0 | F21: =+D21*$F$18 ->  | G21: …% | H21: =IF(J21=TRUE,+G21*F21,0) -> 0 | I21: =+F21-H21 ->  | J21: FALSE | L21: =+$D21*L$18 ->  | M21: …% | N21: =IF(P21=TRUE,+M21*L21,0) -> 0 | O21: =+L21-N21 ->  | P21: FALSE | R21: =+$D21*R$18 ->  | S21: …% | T21: =IF(V21=TRUE,+S21*R21,0) -> 0 | U21: =+R21-T21 ->  | V21: FALSE | X21: =+$D21*X$18 ->  | Y21: …% | Z21: =IF(AB21=TRUE,+Y21*X21,0) -> 0 | AA21: =+X21-Z21 ->  | AB21: FALSE | AD21: =+$D21*AD$18 ->  | AE21: …% | AF21: =IF(AH21=TRUE,+AE21*AD21,0) -> 0 | AG21: =+AD21-AF21 ->  | AH21: FALSE
B22: =+Resultaat!C15 -> 1.2 | C22: =+Resultaat!D15 -> Taxatie en aankoop onroerende zaak | D22: =+Resultaat!F15 -> 0 | F22: =+D22*$F$18 ->  | G22: …% | H22: =IF(J22=TRUE,+G22*F22,0) -> 0 | I22: =+F22-H22 ->  | J22: FALSE | L22: =+$D22*L$18 ->  | M22: …% | N22: =IF(P22=TRUE,+M22*L22,0) -> 0 | O22: =+L22-N22 ->  | P22: FALSE | R22: =+$D22*R$18 ->  | S22: …% | T22: =IF(V22=TRUE,+S22*R22,0) -> 0 | U22: =+R22-T22 ->  | V22: FALSE | X22: =+$D22*X$18 ->  | Y22: …% | Z22: =IF(AB22=TRUE,+Y22*X22,0) -> 0 | AA22: =+X22-Z22 ->  | AD22: =+$D22*AD$18 ->  | AE22: …% | AF22: =IF(AH22=TRUE,+AE22*AD22,0) -> 0 | AG22: =+AD22-AF22 ->  | AH22: FALSE
B23: =+Resultaat!C16 -> 1.3 | C23: =+Resultaat!D16 -> Onteigenen van onroerende zaken | D23: =+Resultaat!F16 -> 0 | F23: =+D23*$F$18 ->  | G23: …% | H23: =IF(J23=TRUE,+G23*F23,0) -> 0 | I23: =+F23-H23 ->  | J23: FALSE | L23: =+$D23*L$18 ->  | M23: …% | N23: =IF(P23=TRUE,+M23*L23,0) -> 0 | O23: =+L23-N23 ->  | P23: FALSE | R23: =+$D23*R$18 ->  | S23: …% | T23: =IF(V23=TRUE,+S23*R23,0) -> 0 | U23: =+R23-T23 ->  | V23: FALSE | X23: =+$D23*X$18 ->  | Y23: …% | Z23: =IF(AB23=TRUE,+Y23*X23,0) -> 0 | AA23: =+X23-Z23 ->  | AD23: =+$D23*AD$18 ->  | AE23: …% | AF23: =IF(AH23=TRUE,+AE23*AD23,0) -> 0 | AG23: =+AD23-AF23 ->  | AH23: FALSE
B24: =+Resultaat!C17 -> 1.4 | C24: =+Resultaat!D17 -> Toepassen Wet voorkeursrecht gemeente | D24: =+Resultaat!F17 -> 0 | F24: =+D24*$F$18 ->  | G24: …% | H24: =IF(J24=TRUE,+G24*F24,0) -> 0 | I24: =+F24-H24 ->  | J24: FALSE | L24: =+$D24*L$18 ->  | M24: …% | N24: =IF(P24=TRUE,+M24*L24,0) -> 0 | O24: =+L24-N24 ->  | P24: FALSE | R24: =+$D24*R$18 ->  | S24: …% | T24: =IF(V24=TRUE,+S24*R24,0) -> 0 | U24: =+R24-T24 ->  | V24: FALSE | X24: =+$D24*X$18 ->  | Y24: …% | Z24: =IF(AB24=TRUE,+Y24*X24,0) -> 0 | AA24: =+X24-Z24 ->  | AD24: =+$D24*AD$18 ->  | AE24: …% | AF24: =IF(AH24=TRUE,+AE24*AD24,0) -> 0 | AG24: =+AD24-AF24 ->  | AH24: FALSE
C26: =+Resultaat!D19 -> Stedenbouw | D26: =+Resultaat!F19 -> 0 | F26: =SUM(F27:F32) ->  | G26: Maximaal 90% | H26: =SUM(H27:H32) -> 0 | I26: =SUM(I27:I32) ->  | L26: =SUM(L27:L32) ->  | M26: Maximaal 90% | N26: =SUM(N27:N32) -> 0 | O26: =SUM(O27:O32) ->  | R26: =SUM(R27:R32) ->  | S26: Maximaal 90% | T26: =SUM(T27:T32) -> 0 | U26: =SUM(U27:U32) ->  | X26: =SUM(X27:X32) ->  | Y26: Maximaal 90% | Z26: =SUM(Z27:Z32) -> 0 | AA26: =SUM(AA27:AA32) ->  | AD26: =SUM(AD27:AD32) ->  | AE26: Maximaal 90% | AF26: =SUM(AF27:AF32) -> 0 | AG26: =SUM(AG27:AG32) -> 
B27: =+Resultaat!C20 -> 2.1 | C27: =+Resultaat!D20 -> Programma van Eisen | D27: =+Resultaat!F20 -> 0 | F27: =+D27*$F$18 ->  | G27: …% | H27: =IF(J27=TRUE,+G27*F27,0) -> 0 | I27: =+F27-H27 ->  | J27: FALSE | L27: =+$D27*L$18 ->  | M27: …% | N27: =IF(P27=TRUE,+M27*L27,0) -> 0 | O27: =+L27-N27 ->  | P27: FALSE | R27: =+$D27*R$18 ->  | S27: …% | T27: =IF(V27=TRUE,+S27*R27,0) -> 0 | U27: =+R27-T27 ->  | V27: FALSE | X27: =+$D27*X$18 ->  | Y27: …% | Z27: =IF(AB27=TRUE,+Y27*X27,0) -> 0 | AA27: =+X27-Z27 ->  | AB27: FALSE | AD27: =+$D27*AD$18 ->  | AE27: …% | AF27: =IF(AH27=TRUE,+AE27*AD27,0) -> 0 | AG27: =+AD27-AF27 ->  | AH27: FALSE
B28: =+Resultaat!C21 -> 2.2 | C28: =+Resultaat!D21 -> Prijsvraag | D28: =+Resultaat!F21 -> 0 | G28: …% | H28: 0 | J28: FALSE | M28: …% | N28: 0 | P28: FALSE | S28: …% | T28: 0 | V28: FALSE | Y28: …% | Z28: 0 | AB28: FALSE | AE28: …% | AF28: 0 | AH28: FALSE
B29: =+Resultaat!C22 -> 2.3 | C29: =+Resultaat!D22 -> Masterplan | D29: =+Resultaat!F22 -> 0 | G29: …% | H29: 0 | J29: FALSE | M29: …% | N29: 0 | P29: FALSE | S29: …% | T29: 0 | V29: FALSE | Y29: …% | Z29: 0 | AB29: FALSE | AE29: …% | AF29: 0 | AH29: FALSE
B30: =+Resultaat!C23 -> 2.4 | C30: =+Resultaat!D23 -> Beeldkwaliteitsplan | D30: =+Resultaat!F23 -> 0 | G30: …% | H30: 0 | J30: FALSE | M30: …% | N30: 0 | P30: FALSE | S30: …% | T30: 0 | V30: FALSE | Y30: …% | Z30: 0 | AB30: FALSE | AE30: …% | AF30: 0 | AH30: FALSE
B31: =+Resultaat!C24 -> 2.5 | C31: =+Resultaat!D24 -> Stedenbouwkundig plan | D31: =+Resultaat!F24 -> 0 | G31: …% | H31: 0 | J31: FALSE | M31: …% | N31: 0 | P31: FALSE | S31: …% | T31: 0 | V31: FALSE | Y31: …% | Z31: 0 | AB31: FALSE | AE31: …% | AF31: 0 | AH31: FALSE
B32: =+Resultaat!C25 -> 2.6 | C32: =+Resultaat!D25 -> Inrichtingsplan Openbare ruimte | D32: =+Resultaat!F25 -> 0 | G32: …% | H32: 0 | J32: FALSE | M32: …% | N32: 0 | P32: FALSE | S32: …% | T32: 0 | V32: FALSE | Y32: …% | Z32: 0 | AB32: FALSE | AE32: …% | AF32: 0 | AH32: FALSE
C34: =+Resultaat!D27 -> Ruimtelijke Ordening | D34: =+Resultaat!F27 -> 0 | F34: =SUM(F35:F37) ->  | G34: Maximaal 60% | H34: =SUM(H35:H37) -> 0 | I34: =SUM(I35:I37) ->  | L34: =SUM(L35:L37) ->  | M34: Maximaal 60% | N34: =SUM(N35:N37) -> 0 | O34: =SUM(O35:O37) ->  | R34: =SUM(R35:R37) ->  | S34: Maximaal 60% | T34: =SUM(T35:T37) -> 0 | U34: =SUM(U35:U37) ->  | X34: =SUM(X35:X37) ->  | Y34: Maximaal 60% | Z34: =SUM(Z35:Z37) -> 0 | AA34: =SUM(AA35:AA37) ->  | AD34: =SUM(AD35:AD37) ->  | AE34: Maximaal 60% | AF34: =SUM(AF35:AF37) -> 0 | AG34: =SUM(AG35:AG37) -> 
B35: =+Resultaat!C28 -> 3.1 | C35: =+Resultaat!D28 -> Opstellen en procedure bestemmingsplan, omgevingsvergunning of projectuitvoeringsbesluit | D35: =+Resultaat!F28 -> 0 | F35: =+D35*$F$18 ->  | G35: …% | H35: =IF(J35=TRUE,+G35*F35,0) -> 0 | I35: =+F35-H35 ->  | J35: FALSE | L35: =+$D35*L$18 ->  | M35: …% | N35: =IF(P35=TRUE,+M35*L35,0) -> 0 | O35: =+L35-N35 ->  | P35: FALSE | R35: =+$D35*R$18 ->  | S35: …% | T35: =IF(V35=TRUE,+S35*R35,0) -> 0 | U35: =+R35-T35 ->  | V35: FALSE | X35: =+$D35*X$18 ->  | Y35: …% | Z35: =IF(AB35=TRUE,+Y35*X35,0) -> 0 | AA35: =+X35-Z35 ->  | AB35: FALSE | AD35: =+$D35*AD$18 ->  | AE35: …% | AF35: =IF(AH35=TRUE,+AE35*AD35,0) -> 0 | AG35: =+AD35-AF35 ->  | AH35: FALSE
B36: =+Resultaat!C29 -> 3.2 | C36: =+Resultaat!D29 -> Opstellen en procedure wijzigingsplan | D36: =+Resultaat!F29 -> 0 | F36: =+D36*$F$18 ->  | G36: …% | H36: =IF(J36=TRUE,+G36*F36,0) -> 0 | I36: =+F36-H36 ->  | J36: FALSE | L36: =+$D36*L$18 ->  | M36: …% | N36: =IF(P36=TRUE,+M36*L36,0) -> 0 | O36: =+L36-N36 ->  | P36: FALSE | R36: =+$D36*R$18 ->  | S36: …% | T36: =IF(V36=TRUE,+S36*R36,0) -> 0 | U36: =+R36-T36 ->  | V36: FALSE | X36: =+$D36*X$18 ->  | Y36: …% | Z36: =IF(AB36=TRUE,+Y36*X36,0) -> 0 | AA36: =+X36-Z36 ->  | AB36: FALSE | AD36: =+$D36*AD$18 ->  | AE36: …% | AF36: =IF(AH36=TRUE,+AE36*AD36,0) -> 0 | AG36: =+AD36-AF36 ->  | AH36: FALSE
B37: =+Resultaat!C30 -> 3.3 | C37: =+Resultaat!D30 -> Opstellen en procedure exploitatieplan | D37: =+Resultaat!F30 -> 0 | F37: =+D37*$F$18 ->  | G37: …% | H37: =IF(J37=TRUE,+G37*F37,0) -> 0 | I37: =+F37-H37 ->  | J37: FALSE | L37: =+$D37*L$18 ->  | M37: …% | N37: =IF(P37=TRUE,+M37*L37,0) -> 0 | O37: =+L37-N37 ->  | P37: FALSE | R37: =+$D37*R$18 ->  | S37: …% | T37: =IF(V37=TRUE,+S37*R37,0) -> 0 | U37: =+R37-T37 ->  | V37: FALSE | X37: =+$D37*X$18 ->  | Y37: …% | Z37: =IF(AB37=TRUE,+Y37*X37,0) -> 0 | AA37: =+X37-Z37 ->  | AB37: FALSE | AD37: =+$D37*AD$18 ->  | AE37: …% | AF37: =IF(AH37=TRUE,+AE37*AD37,0) -> 0 | AG37: =+AD37-AF37 ->  | AH37: FALSE
C39: =+Resultaat!D32 -> Civiele en cultuur techniek | D39: =+Resultaat!F32 -> 0 | F39: =SUM(F40:F41) ->  | G39: Maximaal 80% | H39: =SUM(H40:H41) -> 0 | I39: =SUM(I40:I41) ->  | L39: =SUM(L40:L41) ->  | M39: Maximaal 80% | N39: =SUM(N40:N41) -> 0 | O39: =SUM(O40:O41) ->  | R39: =SUM(R40:R41) ->  | S39: Maximaal 80% | T39: =SUM(T40:T41) -> 0 | U39: =SUM(U40:U41) ->  | X39: =SUM(X40:X41) ->  | Y39: Maximaal 80% | Z39: =SUM(Z40:Z41) -> 0 | AA39: =SUM(AA40:AA41) ->  | AD39: =SUM(AD40:AD41) ->  | AE39: Maximaal 80% | AF39: =SUM(AF40:AF41) -> 0 | AG39: =SUM(AG40:AG41) -> 
B40: =+Resultaat!C33 -> 4.1 | C40: =+Resultaat!D33 -> Planontwikkeling | D40: =+Resultaat!F33 -> 0 | F40: =+D40*$F$18 ->  | G40: …% | H40: =IF(J40=TRUE,+G40*F40,0) -> 0 | I40: =+F40-H40 ->  | J40: FALSE | L40: =+$D40*L$18 ->  | M40: …% | N40: =IF(P40=TRUE,+M40*L40,0) -> 0 | O40: =+L40-N40 ->  | P40: FALSE | R40: =+$D40*R$18 ->  | S40: …% | T40: =IF(V40=TRUE,+S40*R40,0) -> 0 | U40: =+R40-T40 ->  | V40: FALSE | X40: =+$D40*X$18 ->  | Y40: …% | Z40: =IF(AB40=TRUE,+Y40*X40,0) -> 0 | AA40: =+X40-Z40 ->  | AB40: FALSE | AD40: =+$D40*AD$18 ->  | AE40: …% | AF40: =IF(AH40=TRUE,+AE40*AD40,0) -> 0 | AG40: =+AD40-AF40 ->  | AH40: FALSE
B41: =+Resultaat!C34 -> 4.2 | C41: =+Resultaat!D34 -> Voorbereiding, toezicht en directievoering | D41: =+Resultaat!F34 -> 0 | F41: =+D41*$F$18 ->  | G41: …% | H41: =IF(J41=TRUE,+G41*F41,0) -> 0 | I41: =+F41-H41 ->  | J41: FALSE | L41: =+$D41*L$18 ->  | M41: …% | N41: =IF(P41=TRUE,+M41*L41,0) -> 0 | O41: =+L41-N41 ->  | P41: FALSE | R41: =+$D41*R$18 ->  | S41: …% | T41: =IF(V41=TRUE,+S41*R41,0) -> 0 | U41: =+R41-T41 ->  | V41: FALSE | X41: =+$D41*X$18 ->  | Y41: …% | Z41: =IF(AB41=TRUE,+Y41*X41,0) -> 0 | AA41: =+X41-Z41 ->  | AB41: FALSE | AD41: =+$D41*AD$18 ->  | AE41: …% | AF41: =IF(AH41=TRUE,+AE41*AD41,0) -> 0 | AG41: =+AD41-AF41 ->  | AH41: FALSE
C43: =+Resultaat!D36 -> Landmeten/vastgoedinformatie | D43: =+Resultaat!F36 -> 0 | F43: =SUM(F44) ->  | G43: Maximaal 90% | H43: =SUM(H44) -> 0 | I43: =+I44 ->  | L43: =SUM(L44) ->  | M43: Maximaal 90% | N43: =SUM(N44) -> 0 | O43: =+O44 ->  | R43: =SUM(R44) ->  | S43: Maximaal 90% | T43: =SUM(T44) -> 0 | U43: =+U44 ->  | X43: =SUM(X44) ->  | Y43: Maximaal 90% | Z43: =SUM(Z44) -> 0 | AA43: =+AA44 ->  | AD43: =SUM(AD44) ->  | AE43: Maximaal 90% | AF43: =SUM(AF44) -> 0 | AG43: =+AG44 -> 
B44: =+Resultaat!C37 -> 5.1 | C44: =+Resultaat!D37 -> Kaartmateriaal | D44: =+Resultaat!F37 -> 0 | F44: =+D44*$F$18 ->  | G44: …% | H44: =IF(J44=TRUE,+G44*F44,0) -> 0 | I44: =+F44-H44 ->  | J44: FALSE | L44: =+$D44*L$18 ->  | M44: …% | N44: =IF(P44=TRUE,+M44*L44,0) -> 0 | O44: =+L44-N44 ->  | P44: FALSE | R44: =+$D44*R$18 ->  | S44: …% | T44: =IF(V44=TRUE,+S44*R44,0) -> 0 | U44: =+R44-T44 ->  | V44: FALSE | X44: =+$D44*X$18 ->  | Y44: …% | Z44: =IF(AB44=TRUE,+Y44*X44,0) -> 0 | AA44: =+X44-Z44 ->  | AB44: FALSE | AD44: =+$D44*AD$18 ->  | AE44: …% | AF44: =IF(AH44=TRUE,+AE44*AD44,0) -> 0 | AG44: =+AD44-AF44 ->  | AH44: FALSE
C46: =+Resultaat!D39 -> Communicatie | D46: =+Resultaat!F39 -> 0 | F46: =+F47 ->  | G46: Maximaal 90% | H46: =SUM(H47) -> 0 | I46: =+I47 ->  | L46: =+L47 ->  | M46: Maximaal 90% | N46: =SUM(N47) -> 0 | O46: =+O47 ->  | R46: =+R47 ->  | S46: Maximaal 90% | T46: =SUM(T47) -> 0 | U46: =+U47 ->  | X46: =+X47 ->  | Y46: Maximaal 90% | Z46: =SUM(Z47) -> 0 | AA46: =+AA47 ->  | AD46: =+AD47 ->  | AE46: Maximaal 90% | AF46: =SUM(AF47) -> 0 | AG46: =+AG47 -> 
B47: =+Resultaat!C40 -> 6.1 | C47: =+Resultaat!D40 -> Omgevingsmanagement | D47: =+Resultaat!F40 -> 0 | F47: =+D47*$F$18 ->  | G47: …% | H47: =IF(J47=TRUE,+G47*F47,0) -> 0 | I47: =+F47-H47 ->  | J47: FALSE | L47: =+$D47*L$18 ->  | M47: …% | N47: =IF(P47=TRUE,+M47*L47,0) -> 0 | O47: =+L47-N47 ->  | P47: FALSE | R47: =+$D47*R$18 ->  | S47: …% | T47: =IF(V47=TRUE,+S47*R47,0) -> 0 | U47: =+R47-T47 ->  | V47: FALSE | X47: =+$D47*X$18 ->  | Y47: …% | Z47: =IF(AB47=TRUE,+Y47*X47,0) -> 0 | AA47: =+X47-Z47 ->  | AB47: FALSE | AD47: =+$D47*AD$18 ->  | AE47: …% | AF47: =IF(AH47=TRUE,+AE47*AD47,0) -> 0 | AG47: =+AD47-AF47 ->  | AH47: FALSE
C49: =+Resultaat!D42 -> Management | D49: =+Resultaat!F42 -> 0 | F49: =SUM(F50:F51) ->  | G49: Maximaal 90% | H49: =SUM(H50:H51) -> 0 | I49: =SUM(I50:I51) ->  | L49: =SUM(L50:L51) ->  | M49: Maximaal 90% | N49: =SUM(N50:N51) -> 0 | O49: =SUM(O50:O51) ->  | R49: =SUM(R50:R51) ->  | S49: Maximaal 90% | T49: =SUM(T50:T51) -> 0 | U49: =SUM(U50:U51) ->  | X49: =SUM(X50:X51) ->  | Y49: Maximaal 90% | Z49: =SUM(Z50:Z51) -> 0 | AA49: =SUM(AA50:AA51) ->  | AD49: =SUM(AD50:AD51) ->  | AE49: Maximaal 90% | AF49: =SUM(AF50:AF51) -> 0 | AG49: =SUM(AG50:AG51) -> 
B50: =+Resultaat!C43 -> 7.1 | C50: =+Resultaat!D43 -> Projectmanagement | D50: =+Resultaat!F43 -> 0 | F50: =+D50*$F$18 ->  | G50: …% | H50: =IF(J50=TRUE,+G50*F50,0) -> 0 | I50: =+F50-H50 ->  | J50: FALSE | L50: =+$D50*L$18 ->  | M50: …% | N50: =IF(P50=TRUE,+M50*L50,0) -> 0 | O50: =+L50-N50 ->  | P50: FALSE | R50: =+$D50*R$18 ->  | S50: …% | T50: =IF(V50=TRUE,+S50*R50,0) -> 0 | U50: =+R50-T50 ->  | V50: FALSE | X50: =+$D50*X$18 ->  | Y50: …% | Z50: =IF(AB50=TRUE,+Y50*X50,0) -> 0 | AA50: =+X50-Z50 ->  | AB50: FALSE | AD50: =+$D50*AD$18 ->  | AE50: …% | AF50: =IF(AH50=TRUE,+AE50*AD50,0) -> 0 | AG50: =+AD50-AF50 ->  | AH50: FALSE
B51: =+Resultaat!C44 -> 7.2 | C51: =+Resultaat!D44 -> Projectmanagementassistentie | D51: =+Resultaat!F44 -> 0 | F51: =+D51*$F$18 ->  | G51: …% | H51: =IF(J51=TRUE,+G51*F51,0) -> 0 | I51: =+F51-H51 ->  | J51: FALSE | L51: =+$D51*L$18 ->  | M51: …% | N51: =IF(P51=TRUE,+M51*L51,0) -> 0 | O51: =+L51-N51 ->  | P51: FALSE | R51: =+$D51*R$18 ->  | S51: …% | T51: =IF(V51=TRUE,+S51*R51,0) -> 0 | U51: =+R51-T51 ->  | V51: FALSE | X51: =+$D51*X$18 ->  | Y51: …% | Z51: =IF(AB51=TRUE,+Y51*X51,0) -> 0 | AA51: =+X51-Z51 ->  | AD51: =+$D51*AD$18 ->  | AE51: …% | AF51: =IF(AH51=TRUE,+AE51*AD51,0) -> 0 | AG51: =+AD51-AF51 ->  | AH51: FALSE
C53: =+Resultaat!D46 -> Planeconomie | D53: =+Resultaat!F46 -> 0 | F53: =+F54 ->  | G53: Maximaal 90% | H53: =+H54 -> 0 | I53: =+I54 ->  | L53: =+L54 ->  | M53: Maximaal 90% | N53: =+N54 -> 0 | O53: =+O54 ->  | R53: =+R54 ->  | S53: Maximaal 90% | T53: =+T54 -> 0 | U53: =+U54 ->  | X53: =+X54 ->  | Y53: Maximaal 90% | Z53: =+Z54 -> 0 | AA53: =+AA54 ->  | AD53: =+AD54 ->  | AE53: Maximaal 90% | AF53: =+AF54 -> 0 | AG53: =+AG54 -> 
B54: =+Resultaat!C47 -> 8.1 | C54: =+Resultaat!D47 -> Planeconomie | D54: =+Resultaat!F47 -> 0 | F54: =+D54*$F$18 ->  | G54: …% | H54: =IF(J54=TRUE,+G54*F54,0) -> 0 | I54: =+F54-H54 ->  | J54: FALSE | L54: =+$D54*L$18 ->  | M54: …% | N54: =IF(P54=TRUE,+M54*L54,0) -> 0 | O54: =+L54-N54 ->  | P54: FALSE | R54: =+$D54*R$18 ->  | S54: …% | T54: =IF(V54=TRUE,+S54*R54,0) -> 0 | U54: =+R54-T54 ->  | V54: FALSE | X54: =+$D54*X$18 ->  | Y54: …% | Z54: =IF(AB54=TRUE,+Y54*X54,0) -> 0 | AA54: =+X54-Z54 ->  | AB54: FALSE | AD54: =+$D54*AD$18 ->  | AE54: …% | AF54: =IF(AH54=TRUE,+AE54*AD54,0) -> 0 | AG54: =+AD54-AF54 ->  | AH54: FALSE
C56: =+Resultaat!D49 -> totaal | D56: =+Resultaat!F49 -> 0 | F56: =F53+F49+F46+F43+F39+F34+F26+F20 ->  | H56: =H53+H49+H46+H43+H39+H34+H26+H20 -> 0 | I56: =I53+I49+I46+I43+I39+I34+I26+I20 ->  | L56: =L53+L49+L46+L43+L39+L34+L26+L20 ->  | N56: =N53+N49+N46+N43+N39+N34+N26+N20 -> 0 | O56: =O53+O49+O46+O43+O39+O34+O26+O20 ->  | R56: =R53+R49+R46+R43+R39+R34+R26+R20 ->  | T56: =T53+T49+T46+T43+T39+T34+T26+T20 -> 0 | U56: =U53+U49+U46+U43+U39+U34+U26+U20 ->  | X56: =X53+X49+X46+X43+X39+X34+X26+X20 ->  | Z56: =Z53+Z49+Z46+Z43+Z39+Z34+Z26+Z20 -> 0 | AA56: =AA53+AA49+AA46+AA43+AA39+AA34+AA26+AA20 ->  | AD56: =AD53+AD49+AD46+AD43+AD39+AD34+AD26+AD20 ->  | AF56: =AF53+AF49+AF46+AF43+AF39+AF34+AF26+AF20 -> 0 | AG56: =AG53+AG49+AG46+AG43+AG39+AG34+AG26+AG20 -> 
